Workbook

Sheet Sheet1
G1: pc-SAFT -- rough draft - v0.3
G2: (use with caution. Presently set up for methanol.)
E4: NC | F4: T [K] | G4: rho[kg/m3] | H4: xi | I4: di | J4: Mwi | K4: mi | L4: sigma | M4: epsilon/k | N4: KAB | O4: epsAB/k [K] | P4: kij
D5: Methanol | E5: 1 | F5: 523.15 | G5: 0.74 | H5: 1 | I5: =Segdi_sigmai_epsilonki_TinK(L5,M5,F5) -> 3.098799307 | J5: 32.042 | K5: 1.5255 | L5: 3.23 | M5: 188.9 | N5: 0.035176 | O5: 2899.5 | P5: 0
E8: rho [kg/m3] | F8: P [MPa] | G8: eta | H8: rhoND | I8: rhoND | J8: eta | K8: rho [kg/m3] | L8: rho [kg/m3]
B9: Methanol properties | E9: 260 | F9: =PpcSAFT_NC_TinK_rho_xi_Mwi_mi_sigmai_epsilonki_kAB_epsAB_kijm($E$5,$F$5,E9,$H$5,$J$5,$K$5,$L$5,$M$5,$N$5,$O$5,$P$5)/1000000 -> 9.370535513 | G9: =eta_NC_rho_xi_di_Mwi_mi($E$5,E9,$H$5,$I$5,$J$5,$K$5) -> 0.1161437535 | H9: =rhoND_NC_rho_xi_Mwi($E$5,E9,$H$5,$J$5) -> 0.004886576167 | I9: =rhoND_NC_eta_xi_di_Mwi_mi($E$5,G9,$H$5,$I$5,$J$5,$K$5) -> 0.004886576167 | J9: =eta_NC_rhoND_xi_di_Mwi_mi($E$5,H9,$H$5,$I$5,$J$5,$K$5) -> 0.1161437535 | K9: =rho_NC_eta_xi_di_Mwi_mi($E$5,G9,$H$5,$I$5,$J$5,$K$5) -> 260 | L9: =rho_NC_rhoND_xi_Mwi($E$5,H9,$H$5,$J$5) -> 260
B10: Zc | C10: =C11*1000000/(C12/(J5/1000)*C13*8.314) -> 0.2972135944
B11: Pc [MPa] | C11: 10.65
B12: rhoc [kg/m3] | C12: 260 | M12: Average deviations
B13: Tc [K] | C13: 531.15 | M13: Compressibility, Z | N13: Pressure, P
M14: =AVERAGE(M18:M40) -> -0.1492318235 | N14: =AVERAGE(N18:N40) -> -0.1436820232
F16: NIST data
F17: Pdata [MPa] | G17: rho [kg/m3] | H17: Zdata [-] | I17: PpcSAFT [MPa] | J17: ZpcSAFT | K17: ZpcSAFT-function | L17: dZ | M17: %Z dev | N17: %P dev
F18: 0.1 | G18: 0.73923 | H18: =F18*1000000*$J$5/1000/(G18*8.314*$F$5) -> 0.9965607604 | I18: =PpcSAFT_NC_TinK_rho_xi_Mwi_mi_sigmai_epsilonki_kAB_epsAB_kijm($E$5,$F$5,G18,$H$5,$J$5,$K$5,$L$5,$M$5,$N$5,$O$5,$P$5)/1000000 -> 0.09985492536 | J18: =I18*1000000*$J$5/1000/(G18*8.314*$F$5) -> 0.9951150034 | K18: =ZpcSAFT_NC_TinK_rho_xi_Mwi_mi_sigmai_epsilonki_kAB_epsAB_kijm($E$5,$F$5,G18,$H$5,$J$5,$K$5,$L$5,$M$5,$N$5,$O$5,$P$5) -> 0.9950596971 | L18: =K18-J18 -> -5.530636108e-05 | M18: =(K18-H18)/H18*100 -> -0.1506243674 | N18: =(I18-F18)/F18*100 -> -0.1450746445
F19: 0.6 | G19: 4.5175 | H19: =F19*1000000*$J$5/1000/(G19*8.314*$F$5) -> 0.9784450837 | I19: =PpcSAFT_NC_TinK_rho_xi_Mwi_mi_sigmai_epsilonki_kAB_epsAB_kijm($E$5,$F$5,G19,$H$5,$J$5,$K$5,$L$5,$M$5,$N$5,$O$5,$P$5)/1000000 -> 0.5952697271 | J19: =I19*1000000*$J$5/1000/(G19*8.314*$F$5) -> 0.9707312299 | K19: =ZpcSAFT_NC_TinK_rho_xi_Mwi_mi_sigmai_epsilonki_kAB_epsAB_kijm($E$5,$F$5,G19,$H$5,$J$5,$K$5,$L$5,$M$5,$N$5,$O$5,$P$5) -> 0.9706772787 | L19: =K19-J19 -> -5.395116316e-05 | M19: =(K19-H19)/H19*100 -> -0.7938927852 | N19: =(I19-F19)/F19*100 -> -0.7883788157
F20: 1.1 | G20: 8.4487 | H20: =F20*1000000*$J$5/1000/(G20*8.314*$F$5) -> 0.9591491851 | I20: 1.085782367 | J20: 0.9467520659 | K20: 0.9466994475 | L20: -5.261845257e-05 | M20: -1.297998037 | N20: -1.292512086
F21: 1.6 | G21: 12.557 | H21: 0.9386797622 | I21: 1.57330207 | J21: 0.9230167579 | K21: 0.9229654586 | L21: -5.129929498e-05 | M21: -1.674085697 | N21: -1.668620649
F22: 2.1 | G22: 16.872 | H22: 0.9169298144 | I22: 2.059771533 | J22: 0.8993647282 | K22: 0.8993147435 | L22: -4.998476581e-05 | M22: -1.921092617 | N22: -1.915641299
F23: 2.6 | G23: 21.427 | H23: 0.8939131882 | I23: 2.546869336 | J23: 0.8756461877 | K23: 0.8755975211 | L23: -4.866654011e-05 | M23: -2.048931297 | N23: -2.043487084
F24: 3.1 | G24: 26.261 | H24: 0.8696285723 | I24: 3.036132376 | J24: 0.8517120851 | K24: 0.8516647487 | L24: -4.733633394e-05 | M24: -2.065689212 | N24: -2.060245931
F25: 3.6 | G25: 31.419 | H25: 0.8440992391 | I25: 3.528843612 | J25: 0.8274150577 | K25: 0.8273690717 | L25: -4.598595719e-05 | M25: -1.982014268 | N25: -1.976566335
F26: 4.1 | G26: 36.951 | H26: 0.8174120334 | I26: 4.025787686 | J26: 0.8026164144 | K26: 0.8025718067 | L26: -4.460770169e-05 | M26: -1.815513617 | N26: -1.81005643
F27: 4.6 | G27: 42.92 | H27: 0.7895533575 | I27: 4.527762501 | J27: 0.7771543662 | K27: 0.7771111736 | L27: -4.319257558e-05 | M27: -1.575850917 | N27: -1.57038041
F28: 5.1 | G28: 49.407 | H28: 0.7604401837 | I28: 5.035575451 | J28: 0.7508341021 | K28: 0.7507923724 | L28: -4.172975166e-05 | M28: -1.268714036 | N28: -1.263226457
F29: 5.6 | G29: 56.538 | H29: 0.729677495 | I29: 5.551366197 | J29: 0.7233405322 | K29: 0.7233003304 | L29: -4.020171791e-05 | M29: -0.8739702922 | N29: -0.8684607736
F30: 6.1 | G30: 64.532 | H30: 0.6963668299 | I30: 6.080208429 | J30: 0.6941074539 | K30: 0.6940688769 | L30: -3.857700601e-05 | M30: -0.3299917407 | N30: -0.3244519871
F31: 6.6 | G31: 73.757 | H31: 0.6592104115 | I31: 6.630098493 | J31: 0.66221666 | K31: 0.6621798554 | L31: -3.680458398e-05 | M31: 0.4504546483 | N31: 0.4560377798
F32: 7.1 | G32: 84.736 | H32: =F32*1000000*$J$5/1000/(G32*8.314*$F$5) -> 0.6172679897 | I32: 7.206529191 | J32: 0.6265295474 | K32: 0.6264947262 | L32: -3.482117067e-05 | M32: 1.494769963 | N32: 1.500411139
F33: 7.6 | G33: 98.036 | H33: 0.571098968 | I33: 7.800827051 | J33: 0.5861900366 | K33: 0.5861574574 | L33: -3.257918704e-05 | M33: 2.636756545 | N33: 2.642461193
F34: 8.1 | G34: 114.57 | H34: 0.5208317752 | I34: 8.396464922 | J34: 0.5398945347 | K34: 0.5398645285 | L34: -3.000618218e-05 | M34: 3.654299563 | N34: 3.660060767
F35: 8.6 | G35: 136.42 | H35: 0.4644123628 | I35: 8.970194657 | J35: 0.4844034065 | K35: 0.4843764844 | L35: -2.692210409e-05 | M35: 4.298792004 | N35: 4.30458903
F36: 8.6 | G36: 136.42 | H36: 0.4644123628 | I36: 8.970194657 | J36: 0.4844034065 | K36: 0.4843764844 | L36: -2.692210409e-05 | M36: 4.298792004 | N36: 4.30458903
F37: 8.6 | G37: 136.42 | H37: 0.4644123628 | I37: 8.970194657 | J37: 0.4844034065 | K37: 0.4843764844 | L37: -2.692210409e-05 | M37: 4.298792004 | N37: 4.30458903
F38: 9.1 | G38: 175.76 | H38: 0.3814211003 | I38: 9.506569322 | J38: 0.3984622122 | K38: 0.3984400665 | L38: -2.214567654e-05 | M38: 4.461988649 | N38: 4.467794745
F39: 9.6 | G39: 265.34 | H39: 0.2665335443 | I39: 9.33752542 | J39: 0.2592462235 | K39: 0.2592318151 | L39: -1.440834998e-05 | M39: -2.739516035 | N39: -2.734110205
F40: 10.1 | G40: 352.6 | H40: 0.2110194234 | I40: 9.24311538 | J40: 0.1931165226 | K40: 0.1931057896 | L40: -1.073300281e-05 | M40: -8.489092404 | N40: -8.484006141
F41: 10.6 | G41: 388.33 | H41: =F41*1000000*$J$5/1000/(G41*8.314*$F$5) -> 0.2010889881 | I41: 9.836789163 | J41: =I41*1000000*$J$5/1000/(G41*8.314*$F$5) -> 0.1866103754 | K41: 0.186600004 | L41: -1.037140508e-05 | M41: -7.205259851 | N41: -7.200102232
F42: 11.1 | G42: 408.16 | H42: 0.2003437985 | I42: 10.45133898 | J42: 0.1886361218 | K42: 0.1886256378 | L42: -1.048399173e-05 | M42: -5.849025942 | N42: -5.843792942
F43: 11.6 | G43: 422.48 | H43: 0.2022717356 | I43: 11.05480125 | J43: 0.1927649859 | K43: 0.1927542724 | L43: -1.071346515e-05 | M43: -4.705285764 | N43: -4.699989194
F44: 12.1 | G44: 433.99 | H44: 0.2053945965 | I44: 11.65166303 | J44: 0.197784184 | K44: 0.1977731916 | L44: -1.099242144e-05 | M44: -3.710616044 | N44: -3.705264189
F45: 12.6 | G45: 443.72 | H45: 0.2091919205 | I45: 12.24260893 | J45: 0.2032583234 | K45: 0.2032470268 | L45: -1.129666238e-05 | M45: -2.841837173 | N45: -2.83643703
F46: 13.1 | G46: 452.17 | H46: 0.2134287481 | I46: 12.8257757 | J46: 0.2089610115 | K46: 0.2089493979 | L46: -1.161360557e-05 | M46: -2.098756744 | N46: -2.0933153
F47: 13.6 | G47: 459.66 | H47: 0.2179643978 | I47: 13.40115068 | J47: 0.2147774806 | K47: 0.2147655438 | L47: -1.193687248e-05 | M47: -1.467603903 | N47: -1.462127379
F48: 14.1 | G48: 466.38 | H48: 0.2227217143 | I48: 13.96717128 | J48: 0.2206235697 | K48: 0.2206113079 | L48: -1.226178559e-05 | M48: -0.9475530665 | N48: -0.9420476376
F49: 14.6 | G49: 472.49 | H49: 0.2276373917 | I49: 14.52503129 | J49: 0.2264685094 | K49: 0.2264559227 | L49: -1.258663482e-05 | M49: -0.5190135666 | N49: -0.5134843191
F50: 15.1 | G50: 478.09 | H50: 0.2326754989 | I50: 15.07433089 | J50: 0.2322799642 | K50: 0.2322670546 | L50: -1.290962304e-05 | M50: -0.1755424349 | N50: -0.169994097
F51: 15.6 | G51: 483.26 | H51: 0.2378083584 | I51: 15.61521571 | J51: 0.2380403086 | K51: 0.2380270788 | L51: -1.322977064e-05 | M51: 0.09197337345 | N51: 0.0975365802
F52: 16.1 | G52: 488.06 | H52: 0.2430166483 | I52: 16.14763635 | J52: 0.2437356809 | K52: 0.2437221346 | L52: -1.354630724e-05 | M52: 0.2903037131 | N52: 0.2958779433
F53: 16.6 | G53: 492.56 | H53: 0.2482746131 | I53: 16.6742595 | J53: 0.2493852606 | K53: 0.2493714003 | L53: -1.386029878e-05 | M53: 0.4417637461 | N53: 0.4473463946
F54: 17.1 | G54: 496.78 | H54: 0.2535802195 | I54: 17.19314848 | J54: 0.2549615419 | K54: 0.2549473717 | L54: -1.417021656e-05 | M54: 0.5391399083 | N54: 0.544727969
F55: 17.6 | G55: 500.77 | H55: 0.2589153095 | I55: 17.70679185 | J55: 0.2604863348 | K55: 0.2604718575 | L55: -1.447727272e-05 | M55: 0.6011803796 | N55: 0.6067718886
F56: 18.1 | G56: 504.55 | H56: 0.2642760035 | I56: 18.2147062 | J56: 0.2659508155 | K56: 0.2659360345 | L56: -1.478097685e-05 | M56: 0.6281429123 | N56: 0.6337359199
F57: 18.6 | G57: 508.14 | H57: 0.2696577629 | I57: 18.71685317 | J57: 0.2713518684 | K57: 0.2713367873 | L57: -1.508115581e-05 | M57: 0.6226501212 | N57: 0.6282428235
F58: 19.1 | G58: 511.56 | H58: 0.2750553868 | I58: 19.21363156 | J58: 0.2766917728 | K58: 0.2766763949 | L58: -1.537793626e-05 | M58: 0.5893387752 | N58: 0.594929626
F59: 19.6 | G59: 514.84 | H59: 0.280457563 | I59: 19.70739911 | J59: 0.2819943432 | K59: 0.2819786706 | L59: -1.567264177e-05 | M59: 0.5423663982 | N59: 0.5479546382
F60: 20.1 | G60: 517.97 | H60: 0.2858741043 | I60: 20.1948037 | J60: 0.2872224587 | K60: 0.2872064955 | L60: -1.596320923e-05 | M60: 0.4660762117 | N60: 0.4716602115
F61: 20.6 | G61: 520.99 | H61: 0.2912870647 | I61: 20.68045553 | J61: 0.2924247179 | K61: 0.2924084655 | L61: -1.625233966e-05 | M61: 0.3849813249 | N61: 0.3905608173
F62: 21.1 | G62: 523.89 | H62: 0.2967055792 | I62: 21.16135191 | J62: 0.2975683022 | K62: 0.2975517639 | L62: -1.653820906e-05 | M62: 0.2851933947 | N62: 0.2907673408
F63: 21.6 | G63: 526.69 | H63: 0.3021217869 | I63: 21.6394845 | J63: 0.3026740614 | K63: 0.3026572394 | L63: -1.682197623e-05 | M63: 0.1772306792 | N63: 0.1827986246
F64: 22.1 | G64: 529.39 | H64: 0.3075387937 | I64: 22.11367265 | J64: 0.3077290593 | K64: 0.3077119564 | L64: -1.710292219e-05 | M64: 0.05630596341 | N64: 0.06186718773
F65: 22.6 | G65: 532 | H65: 0.3129537595 | I65: 22.58456124 | J65: 0.3127399711 | K65: 0.3127225897 | L65: -1.738141793e-05 | M65: -0.07386708975 | N65: -0.06831310057
F66: 23.1 | G66: 534.53 | H66: 0.3183634934 | I66: 23.05298352 | J66: 0.3177155137 | K66: 0.3176978557 | L66: -1.765794793e-05 | M66: -0.209081028 | N66: -0.2035345541
F67: 23.6 | G67: 536.98 | H67: 0.3237704871 | I67: 23.518036 | J67: 0.3226460157 | K67: 0.3226280837 | L67: -1.793197468e-05 | M67: -0.3528435828 | N67: -0.3473050994
F68: 24.1 | G68: 539.36 | H68: 0.329171081 | I68: 23.98078024 | J68: 0.3275427117 | K68: 0.3275245076 | L68: -1.820412256e-05 | M68: -0.5002181094 | N68: -0.4946878172
F69: 24.6 | G69: 541.67 | H69: 0.334567453 | I69: 24.44044604 | J69: 0.3323974709 | K69: 0.3323789969 | L69: -1.847393968e-05 | M69: -0.6541150592 | N69: -0.6485933208
F70: 25.1 | G70: 543.92 | H70: 0.3399554904 | I70: 24.89831867 | J70: 0.3372239097 | K70: 0.3372051675 | L70: -1.874218281e-05 | M70: -0.8090243965 | N70: -0.803511268
F71: 25.6 | G71: 546.11 | H71: 0.345337072 | I71: 25.35375834 | J71: 0.3420153386 | K71: 0.3419963301 | L71: -1.900848017e-05 | M71: -0.9673858171 | N71: -0.9618814905
F72: 26.1 | G72: 548.25 | H72: 0.3507076451 | I72: 25.80826881 | J72: 0.3467876314 | K72: 0.3467683577 | L72: -1.927371399e-05 | M72: -1.123239682 | N72: -1.117744018
F73: 26.6 | G73: 550.33 | H73: 0.3560752721 | I73: 26.2591478 | J73: 0.3515125262 | K73: 0.3514929899 | L73: -1.953631353e-05 | M73: -1.286885819 | N73: -1.28139925
F74: 27.1 | G74: 552.36 | H74: 0.3614351918 | I74: 26.7079828 | J74: 0.3562068224 | K74: 0.3561870252 | L74: -1.979721245e-05 | M74: -1.452035315 | N74: -1.446557926
F75: 27.6 | G75: 554.35 | H75: 0.3667823227 | I75: 27.1565327 | J75: 0.3608889907 | K75: 0.3608689332 | L75: -2.005743734e-05 | M75: -1.612234057 | N75: -1.606765572
F76: 28.1 | G76: 556.29 | H76: 0.3721246448 | I76: 27.60208894 | J76: 0.3655308735 | K76: 0.365510558 | L76: -2.031542325e-05 | M76: -1.777384775 | N76: -1.771925469
F77: 28.6 | G77: 558.18 | H77: 0.3774636438 | I77: 28.04413177 | J77: 0.3701272786 | K77: 0.3701067077 | L77: -2.05708816e-05 | M77: -1.94904497 | N77: -1.943595205
F78: 29.1 | G78: 560.04 | H78: 0.382787113 | I78: 28.48694453 | J78: 0.374722861 | K78: 0.3747020347 | L78: -2.082629423e-05 | M78: -2.112160532 | N78: -2.106719833
F79: 29.6 | G79: 561.86 | H79: 0.3881029666 | I79: 28.92781285 | J79: 0.3792895265 | K79: 0.3792684464 | L79: -2.108009972e-05 | M79: -2.276334122 | N79: -2.270902548
F80: 30.1 | G80: 563.63 | H80: 0.3934193902 | I80: 29.36385478 | J80: 0.3837976691 | K80: 0.3837763384 | L80: -2.133065263e-05 | M80: -2.45108705 | N80: -2.445665189
F81: 30.6 | G81: 565.38 | H81: 0.3987166312 | I81: 29.80212395 | J81: 0.388320342 | K81: 0.38829876 | L81: -2.158201311e-05 | M81: -2.612850934 | N81: -2.607438064
F82: 31.1 | G82: 567.09 | H82: 0.4040096757 | I82: 30.23733431 | J82: 0.3928030749 | K82: 0.3927812437 | L82: -2.18311538e-05 | M82: -2.77924829 | N82: -2.773844668
F83: 31.6 | G83: 568.77 | H83: 0.4092924821 | I83: =PpcSAFT_NC_TinK_rho_xi_Mwi_mi_sigmai_epsilonki_kAB_epsAB_kijm($E$5,$F$5,G83,$H$5,$J$5,$K$5,$L$5,$M$5,$N$5,$O$5,$P$5)/1000000 -> 30.67169113 | J83: 0.3972687529 | K83: =ZpcSAFT_NC_TinK_rho_xi_Mwi_mi_sigmai_epsilonki_kAB_epsAB_kijm($E$5,$F$5,G83,$H$5,$J$5,$K$5,$L$5,$M$5,$N$5,$O$5,$P$5) -> 0.3972466736 | L83: =K83-J83 -> -2.207934663e-05 | M83: =(K83-H83)/H83*100 -> -2.943080823 | N83: =(I83-F83)/F83*100 -> -2.937686308
F84: 32.1 | G84: 570.41 | H84: 0.4145732422 | I84: 31.1022685 | J84: 0.4016874858 | K84: 0.4016651609 | L84: -2.232493034e-05 | M84: -3.11358285 | N84: -3.108197811
F85: 32.6 | G85: 572.03 | H85: 0.4198384021 | I85: 31.53403601 | J85: 0.4061104077 | K85: 0.406087837 | L85: -2.257074687e-05 | M85: -3.27520424 | N85: -3.269828184
F86: 33.1 | G86: 573.61 | H86: 0.4251034661 | I86: 31.9613809 | J86: 0.4104801754 | K86: 0.4104573617 | L86: -2.28136092e-05 | M86: -3.445303451 | N86: -3.439936849
F87: 33.6 | G87: 575.17 | H87: 0.4303545687 | I87: 32.3894294 | J87: 0.4148493726 | K87: 0.4148263162 | L87: -2.305643982e-05 | M87: -3.608246234 | N87: -3.602888689
F88: 34.1 | G88: 576.71 | H88: 0.4355923693 | I88: 32.81801483 | J88: 0.4192163295 | K88: 0.4191930303 | L88: -2.329914594e-05 | M88: -3.764836151 | N88: -3.759487309
F89: 34.6 | G89: 578.21 | H89: 0.4408327656 | I89: 33.24128628 | J89: 0.4235216232 | K89: 0.4234980848 | L89: -2.353842494e-05 | M89: -3.932257794 | N89: -3.926918258
F90: 35.1 | G90: 579.7 | H90: 0.4460537372 | I90: 33.66748183 | J90: 0.4278491764 | K90: 0.4278253974 | L90: -2.377894108e-05 | M90: -4.086579308 | N90: -4.081248349
F91: 35.6 | G91: 581.15 | H91: 0.4512789976 | I91: 34.08779236 | J91: 0.4321096845 | K91: 0.4320856688 | L91: -2.4015731e-05 | M91: -4.253095972 | N91: -4.247774268
F92: 36.1 | G92: 582.59 | H92: 0.4564860838 | I92: 34.51068519 | J92: 0.4363891283 | K92: 0.4363648747 | L92: -2.425357332e-05 | M92: -4.40784719 | N92: -4.402534088
F93: 36.6 | G93: 584 | H93: 0.4616912082 | I93: 34.93011451 | J93: 0.4406264145 | K93: 0.4406019254 | L93: -2.448907261e-05 | M93: -4.567832881 | N93: -4.562528671
F94: 37.1 | G94: 585.39 | H94: 0.4668872096 | I94: 35.34882513 | J94: 0.4448494429 | K94: 0.4448247191 | L94: -2.472377949e-05 | M94: -4.725443339 | N94: -4.720147888
F95: 37.6 | G95: 586.76 | H95: 0.4720746842 | I95: 35.76664324 | J95: 0.4490565642 | K95: 0.4490316066 | L95: -2.495760229e-05 | M95: -4.881235611 | N95: -4.87594882
F96: 38.1 | G96: 588.11 | H96: 0.4772542207 | I96: 36.18339429 | J96: 0.4532461325 | K96: 0.453220942 | L96: -2.519044952e-05 | M96: -5.035739375 | N96: -5.030461171
F97: 38.6 | G97: 589.44 | H97: 0.482426401 | I97: 36.59890313 | J97: 0.4574165056 | K97: 0.4573910834 | L97: -2.542222993e-05 | M97: -5.189458442 | N97: -5.184188783
F98: 39.1 | G98: 590.75 | H98: 0.4875918 | I98: 37.01299409 | J98: 0.4615660464 | K98: 0.4615403935 | L98: -2.565285252e-05 | M98: -5.342872156 | N98: -5.337611024
F99: 39.6 | G99: 592.04 | H99: 0.4927509863 | I99: 37.4254911 | J99: 0.4656931226 | K99: 0.4656672404 | L99: -2.588222658e-05 | M99: -5.496436676 | N99: -5.491184079
F100: 40.1 | G100: 593.32 | H100: 0.4978961302 | I100: 37.83947019 | J100: 0.469828573 | K100: 0.4698024609 | L100: -2.611206606e-05 | M100: -5.642475923 | N100: -5.637231443
G130: Temperature (K)
G131: 523.15 | P131: 0 | AB131: Methanol
O132: 0 | P132: 0
D133: dP | F133: Pressure (MPa) | G133: Density (kg/m3) | H133: Volume (m3/kg) | I133: Internal Energy (kJ/kg) | J133: Enthalpy (kJ/kg) | K133: Entropy (J/g*K) | L133: Cv (J/g*K) | M133: Cp (J/g*K) | N133: Sound Spd. (m/s) | O133: Joule-Thomson (K/MPa) | P133: Viscosity (Pa*s) | Q133: Therm. Cond. (W/m*K) | R133: Phase | Z133: Temperature (C) | AA133: Pressure (MPa) | AB133: Density (kg/m3) | AC133: Volume (m3/kg) | AD133: Internal Energy (kJ/kg) | AE133: Enthalpy (kJ/kg) | AF133: Entropy (J/g*K) | AG133: Cv (J/g*K) | AH133: Cp (J/g*K) | AI133: Sound Spd. (m/s) | AJ133: Joule-Thomson (K/MPa) | AK133: Viscosity (Pa*s) | AL133: Therm. Cond. (W/m*K) | AM133: Phase
D134: =H134-F134 -> 1.2528 | F134: 0.1 | G134: 0.73923 | H134: 1.3528 | I134: 1315.2 | J134: 1450.5 | K134: 4.097 | L134: 1.671 | M134: 1.9362 | N134: 395.21 | O134: 10.102 | P134: undefined | Q134: undefined | R134: vapor | Z134: 250 | AA134: 0.1 | AB134: 0.73923 | AC134: 1.3528 | AD134: 1315.2 | AE134: 1450.5 | AF134: 4.097 | AG134: 1.671 | AH134: 1.9362 | AI134: 395.21 | AJ134: 10.102 | AK134: undefined | AL134: undefined | AM134: vapor
D135: -0.37864 | F135: 0.6 | G135: 4.5175 | H135: 0.22136 | I135: 1307.6 | J135: 1440.4 | K135: 3.6173 | L135: 1.7373 | M135: 2.0347 | N135: 389.95 | O135: 10.295 | P135: undefined | Q135: undefined | R135: vapor | Z135: 250 | AA135: 0.6 | AB135: 4.5175 | AC135: 0.22136 | AD135: 1307.6 | AE135: 1440.4 | AF135: 3.6173 | AG135: 1.7373 | AH135: 2.0347 | AI135: 389.95 | AJ135: 10.295 | AK135: undefined | AL135: undefined | AM135: vapor
D136: -0.98164 | F136: 1.1 | G136: 8.4487 | H136: 0.11836 | I136: 1299.3 | J136: 1429.5 | K136: 3.444 | L136: 1.8085 | M136: 2.1455 | N136: 384.34 | O136: 10.473 | P136: undefined | Q136: undefined | R136: vapor | Z136: 250 | AA136: 1.1 | AB136: 8.4487 | AC136: 0.11836 | AD136: 1299.3 | AE136: 1429.5 | AF136: 3.444 | AG136: 1.8085 | AH136: 2.1455 | AI136: 384.34 | AJ136: 10.473 | AK136: undefined | AL136: undefined | AM136: vapor
D137: -1.520365 | F137: 1.6 | G137: 12.557 | H137: 0.079635 | I137: 1290.5 | J137: 1417.9 | K137: 3.3294 | L137: 1.8856 | M137: 2.2714 | N137: 378.39 | O137: 10.629 | P137: undefined | Q137: undefined | R137: vapor | Z137: 250 | AA137: 1.6 | AB137: 12.557 | AC137: 0.079635 | AD137: 1290.5 | AE137: 1417.9 | AF137: 3.3294 | AG137: 1.8856 | AH137: 2.2714 | AI137: 378.39 | AJ137: 10.629 | AK137: undefined | AL137: undefined | AM137: vapor
D138: -2.040731 | F138: 2.1 | G138: 16.872 | H138: 0.059269 | I138: 1280.9 | J138: 1405.4 | K138: 3.24 | L138: 1.9695 | M138: 2.4159 | N138: 372.12 | O138: 10.75 | P138: undefined | Q138: undefined | R138: vapor | Z138: 250 | AA138: 2.1 | AB138: 16.872 | AC138: 0.059269 | AD138: 1280.9 | AE138: 1405.4 | AF138: 3.24 | AG138: 1.9695 | AH138: 2.4159 | AI138: 372.12 | AJ138: 10.75 | AK138: undefined | AL138: undefined | AM138: vapor
D139: -2.553331 | F139: 2.6 | G139: 21.427 | H139: 0.046669 | I139: 1270.6 | J139: 1391.9 | K139: 3.164 | L139: 2.0613 | M139: 2.5826 | N139: 365.57 | O139: 10.824 | P139: undefined | Q139: undefined | R139: vapor | Z139: 250 | AA139: 2.6 | AB139: 21.427 | AC139: 0.046669 | AD139: 1270.6 | AE139: 1391.9 | AF139: 3.164 | AG139: 2.0613 | AH139: 2.5826 | AI139: 365.57 | AJ139: 10.824 | AK139: undefined | AL139: undefined | AM139: vapor
D140: -3.061921 | F140: 3.1 | G140: 26.261 | H140: 0.038079 | I140: 1259.3 | J140: 1377.4 | K140: 3.096 | L140: 2.1614 | M140: 2.7753 | N140: 358.77 | O140: 10.838 | P140: undefined | Q140: undefined | R140: vapor | Z140: 250 | AA140: 3.1 | AB140: 26.261 | AC140: 0.038079 | AD140: 1259.3 | AE140: 1377.4 | AF140: 3.096 | AG140: 2.1614 | AH140: 2.7753 | AI140: 358.77 | AJ140: 10.838 | AK140: undefined | AL140: undefined | AM140: vapor
D141: -3.568172 | F141: 3.6 | G141: 31.419 | H141: 0.031828 | I141: 1247.2 | J141: 1361.8 | K141: 3.033 | L141: 2.27 | M141: 2.9976 | N141: 351.77 | O141: 10.782 | P141: undefined | Q141: undefined | R141: vapor | Z141: 250 | AA141: 3.6 | AB141: 31.419 | AC141: 0.031828 | AD141: 1247.2 | AE141: 1361.8 | AF141: 3.033 | AG141: 2.27 | AH141: 2.9976 | AI141: 351.77 | AJ141: 10.782 | AK141: undefined | AL141: undefined | AM141: vapor
D142: -4.072937 | F142: 4.1 | G142: 36.951 | H142: 0.027063 | I142: 1234.1 | J142: 1345.1 | K142: 2.9729 | L142: 2.3865 | M142: 3.2526 | N142: 344.58 | O142: 10.655 | P142: undefined | Q142: undefined | R142: vapor | Z142: 250 | AA142: 4.1 | AB142: 36.951 | AC142: 0.027063 | AD142: 1234.1 | AE142: 1345.1 | AF142: 2.9729 | AG142: 2.3865 | AH142: 3.2526 | AI142: 344.58 | AJ142: 10.655 | AK142: undefined | AL142: undefined | AM142: vapor
D143: -4.576701 | F143: 4.6 | G143: 42.92 | H143: 0.023299 | I143: 1219.9 | J143: 1327.1 | K143: 2.9146 | L143: 2.5095 | M143: 3.5437 | N143: 337.14 | O143: 10.472 | P143: undefined | Q143: undefined | R143: vapor | Z143: 250 | AA143: 4.6 | AB143: 42.92 | AC143: 0.023299 | AD143: 1219.9 | AE143: 1327.1 | AF143: 2.9146 | AG143: 2.5095 | AH143: 3.5437 | AI143: 337.14 | AJ143: 10.472 | AK143: undefined | AL143: undefined | AM143: vapor
D144: -5.07976 | F144: 5.1 | G144: 49.407 | H144: 0.02024 | I144: 1204.7 | J144: 1307.9 | K144: 2.8571 | L144: 2.6372 | M144: 3.8785 | N144: 329.27 | O144: 10.27 | P144: undefined | Q144: undefined | R144: vapor | Z144: 250 | AA144: 5.1 | AB144: 49.407 | AC144: 0.02024 | AD144: 1204.7 | AE144: 1307.9 | AF144: 2.8571 | AG144: 2.6372 | AH144: 3.8785 | AI144: 329.27 | AJ144: 10.27 | AK144: undefined | AL144: undefined | AM144: vapor
D145: -5.582313 | F145: 5.6 | G145: 56.538 | H145: 0.017687 | I145: 1188.1 | J145: 1287.2 | K145: 2.7994 | L145: 2.7689 | M145: 4.2778 | N145: 320.61 | O145: 10.107 | P145: undefined | Q145: undefined | R145: vapor | Z145: 250 | AA145: 5.6 | AB145: 56.538 | AC145: 0.017687 | AD145: 1188.1 | AE145: 1287.2 | AF145: 2.7994 | AG145: 2.7689 | AH145: 4.2778 | AI145: 320.61 | AJ145: 10.107 | AK145: undefined | AL145: undefined | AM145: vapor
D146: -6.084504 | F146: 6.1 | G146: 64.532 | H146: 0.015496 | I146: 1169.9 | J146: 1264.4 | K146: 2.7401 | L146: 2.9064 | M146: 4.7904 | N146: 310.78 | O146: 10.032 | P146: undefined | Q146: undefined | R146: vapor | Z146: 250 | AA146: 6.1 | AB146: 64.532 | AC146: 0.015496 | AD146: 1169.9 | AE146: 1264.4 | AF146: 2.7401 | AG146: 2.9064 | AH146: 4.7904 | AI146: 310.78 | AJ146: 10.032 | AK146: undefined | AL146: undefined | AM146: vapor
D147: -6.586442 | F147: 6.6 | G147: 73.757 | H147: 0.013558 | I147: 1149.3 | J147: 1238.8 | K147: 2.6772 | L147: 3.0549 | M147: 5.497 | N147: 299.81 | O147: 10.007 | P147: undefined | Q147: undefined | R147: vapor | Z147: 250 | AA147: 6.6 | AB147: 73.757 | AC147: 0.013558 | AD147: 1149.3 | AE147: 1238.8 | AF147: 2.6772 | AG147: 3.0549 | AH147: 5.497 | AI147: 299.81 | AJ147: 10.007 | AK147: undefined | AL147: undefined | AM147: vapor
D148: -7.088199 | F148: 7.1 | G148: 84.736 | H148: 0.011801 | I148: 1125.4 | J148: 1209.2 | K148: 2.6085 | L148: 3.2169 | M148: 6.4473 | N148: 288.54 | O148: 9.8447 | P148: undefined | Q148: undefined | R148: vapor | Z148: 250 | AA148: 7.1 | AB148: 84.736 | AC148: 0.011801 | AD148: 1125.4 | AE148: 1209.2 | AF148: 2.6085 | AG148: 3.2169 | AH148: 6.4473 | AI148: 288.54 | AJ148: 9.8447 | AK148: undefined | AL148: undefined | AM148: vapor
D149: -7.5898 | F149: 7.6 | G149: 98.036 | H149: 0.0102 | I149: 1097.7 | J149: 1175.2 | K149: 2.5331 | L149: 3.3821 | M149: 7.6569 | N149: 277.38 | O149: 9.4746 | P149: undefined | Q149: undefined | R149: vapor | Z149: 250 | AA149: 7.6 | AB149: 98.036 | AC149: 0.0102 | AD149: 1097.7 | AE149: 1175.2 | AF149: 2.5331 | AG149: 3.3821 | AH149: 7.6569 | AI149: 277.38 | AJ149: 9.4746 | AK149: undefined | AL149: undefined | AM149: vapor
D150: -8.091272 | F150: 8.1 | G150: 114.57 | H150: 0.008728 | I150: 1065.4 | J150: 1136.1 | K150: 2.4492 | L150: 3.5495 | M150: 9.435 | N150: 267.33 | O150: 8.9744 | P150: undefined | Q150: undefined | R150: vapor | Z150: 250 | AA150: 8.1 | AB150: 114.57 | AC150: 0.008728 | AD150: 1065.4 | AE150: 1136.1 | AF150: 2.4492 | AG150: 3.5495 | AH150: 9.435 | AI150: 267.33 | AJ150: 8.9744 | AK150: undefined | AL150: undefined | AM150: vapor
D151: -8.5926697 | F151: 8.6 | G151: 136.42 | H151: 0.0073303 | I151: 1025.8 | J151: 1088.9 | K151: 2.3513 | L151: 3.7402 | M151: 12.784 | N151: 252.79 | O151: 8.5482 | P151: undefined | Q151: undefined | R151: vapor | Z151: 250 | AA151: 8.6 | AB151: 136.42 | AC151: 0.0073303 | AD151: 1025.8 | AE151: 1088.9 | AF151: 2.3513 | AG151: 3.7402 | AH151: 12.784 | AI151: 252.79 | AJ151: 8.5482 | AK151: undefined | AL151: undefined | AM151: vapor
D152: -8.5926697 | F152: 8.6 | G152: 136.42 | H152: 0.0073303 | I152: 1025.8 | J152: 1088.9 | K152: 2.3513 | L152: 3.7402 | M152: 12.784 | N152: 252.79 | O152: 8.5482 | P152: undefined | Q152: undefined | R152: supercritical | Z152: 250 | AA152: 8.6 | AB152: 136.42 | AC152: 0.0073303 | AD152: 1025.8 | AE152: 1088.9 | AF152: 2.3513 | AG152: 3.7402 | AH152: 12.784 | AI152: 252.79 | AJ152: 8.5482 | AK152: undefined | AL152: undefined | AM152: supercritical
D153: -8.5926697 | F153: 8.6 | G153: 136.42 | H153: 0.0073303 | I153: 1025.8 | J153: 1088.9 | K153: 2.3513 | L153: 3.7402 | M153: 12.784 | N153: 252.79 | O153: 8.5482 | P153: undefined | Q153: undefined | R153: supercritical | Z153: 250 | AA153: 8.6 | AB153: 136.42 | AC153: 0.0073303 | AD153: 1025.8 | AE153: 1088.9 | AF153: 2.3513 | AG153: 3.7402 | AH153: 12.784 | AI153: 252.79 | AJ153: 8.5482 | AK153: undefined | AL153: undefined | AM153: supercritical
D154: -9.0943103 | F154: 9.1 | G154: 175.76 | H154: 0.0056897 | I154: 964.92 | J154: 1016.7 | K154: 2.2071 | L154: 3.9405 | M154: 23.459 | N154: 226.64 | O154: 8.1009 | P154: undefined | Q154: undefined | R154: supercritical | Z154: 250 | AA154: 9.1 | AB154: 175.76 | AC154: 0.0056897 | AD154: 964.92 | AE154: 1016.7 | AF154: 2.2071 | AG154: 3.9405 | AH154: 23.459 | AI154: 226.64 | AJ154: 8.1009 | AK154: undefined | AL154: undefined | AM154: supercritical
D155: -9.5962313 | F155: 9.6 | G155: 265.34 | H155: 0.0037687 | I155: 863.48 | J155: 899.66 | K155: 1.9789 | L155: 4.0495 | M155: 38.445 | N155: 203.4 | O155: 6.2013 | P155: undefined | Q155: undefined | R155: supercritical | Z155: 250 | AA155: 9.6 | AB155: 265.34 | AC155: 0.0037687 | AD155: 863.48 | AE155: 899.66 | AF155: 1.9789 | AG155: 4.0495 | AH155: 38.445 | AI155: 203.4 | AJ155: 6.2013 | AK155: undefined | AL155: undefined | AM155: supercritical
D156: -10.0971639 | F156: 10.1 | G156: 352.6 | H156: 0.0028361 | I156: 793.35 | J156: 822 | K156: 1.8274 | L156: 3.8679 | M156: 20.089 | N156: 220.38 | O156: 4.1117 | P156: undefined | Q156: undefined | R156: supercritical | Z156: 250 | AA156: 10.1 | AB156: 352.6 | AC156: 0.0028361 | AD156: 793.35 | AE156: 822 | AF156: 1.8274 | AG156: 3.8679 | AH156: 20.089 | AI156: 220.38 | AJ156: 4.1117 | AK156: undefined | AL156: undefined | AM156: supercritical
D157: -10.5974249 | F157: 10.6 | G157: 388.33 | H157: 0.0025751 | I157: 768.28 | J157: 795.57 | K157: 1.7743 | L157: 3.7192 | M157: 11.977 | N157: 255.64 | O157: 2.922 | P157: undefined | Q157: undefined | R157: supercritical | Z157: 250 | AA157: 10.6 | AB157: 388.33 | AC157: 0.0025751 | AD157: 768.28 | AE157: 795.57 | AF157: 1.7743 | AG157: 3.7192 | AH157: 11.977 | AI157: 255.64 | AJ157: 2.922 | AK157: undefined | AL157: undefined | AM157: supercritical
D158: -11.09755 | F158: 11.1 | G158: 408.16 | H158: 0.00245 | I158: 754.57 | J158: 781.76 | K158: 1.7455 | L158: 3.6354 | M158: 9.6236 | N158: 284.44 | O158: 2.3229 | P158: undefined | Q158: undefined | R158: supercritical | Z158: 250 | AA158: 11.1 | AB158: 408.16 | AC158: 0.00245 | AD158: 754.57 | AE158: 781.76 | AF158: 1.7455 | AG158: 3.6354 | AH158: 9.6236 | AI158: 284.44 | AJ158: 2.3229 | AK158: undefined | AL158: undefined | AM158: supercritical
D159: -11.597633 | F159: 11.6 | G159: 422.48 | H159: 0.002367 | I159: 744.65 | J159: 772.1 | K159: 1.7248 | L159: 3.5783 | M159: 8.5644 | N159: 307.33 | O159: 1.9706 | P159: undefined | Q159: undefined | R159: supercritical | Z159: 250 | AA159: 11.6 | AB159: 422.48 | AC159: 0.002367 | AD159: 744.65 | AE159: 772.1 | AF159: 1.7248 | AG159: 3.5783 | AH159: 8.5644 | AI159: 307.33 | AJ159: 1.9706 | AK159: undefined | AL159: undefined | AM159: supercritical
D160: -12.0976958 | F160: 12.1 | G160: 433.99 | H160: 0.0023042 | I160: 736.63 | J160: 764.51 | K160: 1.708 | L160: 3.5353 | M160: 7.932 | N160: 326.81 | O160: 1.7288 | P160: undefined | Q160: undefined | R160: supercritical | Z160: 250 | AA160: 12.1 | AB160: 433.99 | AC160: 0.0023042 | AD160: 736.63 | AE160: 764.51 | AF160: 1.708 | AG160: 3.5353 | AH160: 7.932 | AI160: 326.81 | AJ160: 1.7288 | AK160: undefined | AL160: undefined | AM160: supercritical
D161: -12.5977463 | F161: 12.6 | G161: 443.72 | H161: 0.0022537 | I161: 729.83 | J161: 758.22 | K161: 1.6938 | L161: 3.5011 | M161: 7.4883 | N161: 344.23 | O161: 1.5458 | P161: undefined | Q161: undefined | R161: supercritical | Z161: 250 | AA161: 12.6 | AB161: 443.72 | AC161: 0.0022537 | AD161: 729.83 | AE161: 758.22 | AF161: 1.6938 | AG161: 3.5011 | AH161: 7.4883 | AI161: 344.23 | AJ161: 1.5458 | AK161: undefined | AL161: undefined | AM161: supercritical
D162: -13.0977884 | F162: 13.1 | G162: 452.17 | H162: 0.0022116 | I162: 723.88 | J162: 752.85 | K162: 1.6814 | L162: 3.4731 | M162: 7.1478 | N162: 360.23 | O162: 1.399 | P162: undefined | Q162: undefined | R162: supercritical | Z162: 250 | AA162: 13.1 | AB162: 452.17 | AC162: 0.0022116 | AD162: 723.88 | AE162: 752.85 | AF162: 1.6814 | AG162: 3.4731 | AH162: 7.1478 | AI162: 360.23 | AJ162: 1.399 | AK162: undefined | AL162: undefined | AM162: supercritical
D163: -13.5978245 | F163: 13.6 | G163: 459.66 | H163: 0.0021755 | I163: 718.58 | J163: 748.16 | K163: 1.6704 | L163: 3.4496 | M163: 6.8728 | N163: 375.15 | O163: 1.2773 | P163: undefined | Q163: undefined | R163: supercritical | Z163: 250 | AA163: 13.6 | AB163: 459.66 | AC163: 0.0021755 | AD163: 718.58 | AE163: 748.16 | AF163: 1.6704 | AG163: 3.4496 | AH163: 6.8728 | AI163: 375.15 | AJ163: 1.2773 | AK163: undefined | AL163: undefined | AM163: supercritical
D164: -14.0978558 | F164: 14.1 | G164: 466.38 | H164: 0.0021442 | I164: 713.8 | J164: 744.03 | K164: 1.6604 | L164: 3.4295 | M164: 6.6442 | N164: 389.16 | O164: 1.1741 | P164: undefined | Q164: undefined | R164: supercritical | Z164: 250 | AA164: 14.1 | AB164: 466.38 | AC164: 0.0021442 | AD164: 713.8 | AE164: 744.03 | AF164: 1.6604 | AG164: 3.4295 | AH164: 6.6442 | AI164: 389.16 | AJ164: 1.1741 | AK164: undefined | AL164: undefined | AM164: supercritical
D165: -14.5978836 | F165: 14.6 | G165: 472.49 | H165: 0.0021164 | I165: 709.43 | J165: 740.33 | K165: 1.6513 | L165: 3.4121 | M165: 6.4503 | N165: 402.4 | O165: 1.0853 | P165: undefined | Q165: undefined | R165: supercritical | Z165: 250 | AA165: 14.6 | AB165: 472.49 | AC165: 0.0021164 | AD165: 709.43 | AE165: 740.33 | AF165: 1.6513 | AG165: 3.4121 | AH165: 6.4503 | AI165: 402.4 | AJ165: 1.0853 | AK165: undefined | AL165: undefined | AM165: supercritical
D166: =H166-F166 -> -15.0979083 | F166: 15.1 | G166: 478.09 | H166: 0.0020917 | I166: 705.42 | J166: 737.01 | K166: 1.6429 | L166: 3.3969 | M166: 6.2837 | N166: 414.94 | O166: 1.008 | P166: undefined | Q166: undefined | R166: supercritical | Z166: 250 | AA166: 15.1 | AB166: 478.09 | AC166: 0.0020917 | AD166: 705.42 | AE166: 737.01 | AF166: 1.6429 | AG166: 3.3969 | AH166: 6.2837 | AI166: 414.94 | AJ166: 1.008 | AK166: undefined | AL166: undefined | AM166: supercritical
D167: -15.5979307 | F167: 15.6 | G167: 483.26 | H167: 0.0020693 | I167: 701.7 | J167: 733.98 | K167: 1.6352 | L167: 3.3834 | M167: 6.1388 | N167: 426.85 | O167: 0.94004 | P167: undefined | Q167: undefined | R167: supercritical | Z167: 250 | AA167: 15.6 | AB167: 483.26 | AC167: 0.0020693 | AD167: 701.7 | AE167: 733.98 | AF167: 1.6352 | AG167: 3.3834 | AH167: 6.1388 | AI167: 426.85 | AJ167: 0.94004 | AK167: undefined | AL167: undefined | AM167: supercritical
D168: -16.0979511 | F168: 16.1 | G168: 488.06 | H168: 0.0020489 | I168: 698.23 | J168: 731.22 | K168: 1.6279 | L168: 3.3713 | M168: 6.0118 | N168: 438.2 | O168: 0.87985 | P168: undefined | Q168: undefined | R168: supercritical | Z168: 250 | AA168: 16.1 | AB168: 488.06 | AC168: 0.0020489 | AD168: 698.23 | AE168: 731.22 | AF168: 1.6279 | AG168: 3.3713 | AH168: 6.0118 | AI168: 438.2 | AJ168: 0.87985 | AK168: undefined | AL168: undefined | AM168: supercritical
D169: -16.5979698 | F169: 16.6 | G169: 492.56 | H169: 0.0020302 | I169: 694.98 | J169: 728.68 | K169: 1.6211 | L169: 3.3604 | M169: 5.8993 | N169: 449.04 | O169: 0.82614 | P169: undefined | Q169: undefined | R169: supercritical | Z169: 250 | AA169: 16.6 | AB169: 492.56 | AC169: 0.0020302 | AD169: 694.98 | AE169: 728.68 | AF169: 1.6211 | AG169: 3.3604 | AH169: 5.8993 | AI169: 449.04 | AJ169: 0.82614 | AK169: undefined | AL169: undefined | AM169: supercritical
D170: -17.0979871 | F170: 17.1 | G170: 496.78 | H170: 0.0020129 | I170: 691.92 | J170: 726.34 | K170: 1.6147 | L170: 3.3505 | M170: 5.7991 | N170: 459.41 | O170: 0.7779 | P170: undefined | Q170: undefined | R170: supercritical | Z170: 250 | AA170: 17.1 | AB170: 496.78 | AC170: 0.0020129 | AD170: 691.92 | AE170: 726.34 | AF170: 1.6147 | AG170: 3.3505 | AH170: 5.7991 | AI170: 459.41 | AJ170: 0.7779 | AK170: undefined | AL170: undefined | AM170: supercritical
D171: -17.5980031 | F171: 17.6 | G171: 500.77 | H171: 0.0019969 | I171: 689.02 | J171: 724.16 | K171: 1.6086 | L171: 3.3415 | M171: 5.7092 | N171: 469.36 | O171: 0.73432 | P171: undefined | Q171: undefined | R171: supercritical | Z171: 250 | AA171: 17.6 | AB171: 500.77 | AC171: 0.0019969 | AD171: 689.02 | AE171: 724.16 | AF171: 1.6086 | AG171: 3.3415 | AH171: 5.7092 | AI171: 469.36 | AJ171: 0.73432 | AK171: undefined | AL171: undefined | AM171: supercritical
D172: -18.098018 | F172: 18.1 | G172: 504.55 | H172: 0.001982 | I172: 686.27 | J172: 722.14 | K172: 1.6028 | L172: 3.3332 | M172: 5.628 | N172: 478.93 | O172: 0.69473 | P172: undefined | Q172: undefined | R172: supercritical | Z172: 250 | AA172: 18.1 | AB172: 504.55 | AC172: 0.001982 | AD172: 686.27 | AE172: 722.14 | AF172: 1.6028 | AG172: 3.3332 | AH172: 5.628 | AI172: 478.93 | AJ172: 0.69473 | AK172: undefined | AL172: undefined | AM172: supercritical
D173: -18.598032 | F173: 18.6 | G173: 508.14 | H173: 0.001968 | I173: 683.64 | J173: 720.25 | K173: 1.5973 | L173: 3.3256 | M173: 5.5543 | N173: 488.14 | O173: 0.65858 | P173: undefined | Q173: undefined | R173: supercritical | Z173: 250 | AA173: 18.6 | AB173: 508.14 | AC173: 0.001968 | AD173: 683.64 | AE173: 720.25 | AF173: 1.5973 | AG173: 3.3256 | AH173: 5.5543 | AI173: 488.14 | AJ173: 0.65858 | AK173: undefined | AL173: undefined | AM173: supercritical
D174: -19.0980452 | F174: 19.1 | G174: 511.56 | H174: 0.0019548 | I174: 681.14 | J174: 718.48 | K174: 1.5921 | L174: 3.3184 | M174: 5.487 | N174: 497.03 | O174: 0.62543 | P174: undefined | Q174: undefined | R174: supercritical | Z174: 250 | AA174: 19.1 | AB174: 511.56 | AC174: 0.0019548 | AD174: 681.14 | AE174: 718.48 | AF174: 1.5921 | AG174: 3.3184 | AH174: 5.487 | AI174: 497.03 | AJ174: 0.62543 | AK174: undefined | AL174: undefined | AM174: supercritical
D175: -19.5980576 | F175: 19.6 | G175: 514.84 | H175: 0.0019424 | I175: 678.74 | J175: 716.81 | K175: 1.587 | L175: 3.3118 | M175: 5.4252 | N175: 505.63 | O175: 0.59491 | P175: undefined | Q175: undefined | R175: supercritical | Z175: 250 | AA175: 19.6 | AB175: 514.84 | AC175: 0.0019424 | AD175: 678.74 | AE175: 716.81 | AF175: 1.587 | AG175: 3.3118 | AH175: 5.4252 | AI175: 505.63 | AJ175: 0.59491 | AK175: undefined | AL175: undefined | AM175: supercritical
D176: -20.0980694 | F176: 20.1 | G176: 517.97 | H176: 0.0019306 | I176: 676.44 | J176: 715.25 | K176: 1.5822 | L176: 3.3056 | M176: 5.3683 | N176: 513.95 | O176: 0.56668 | P176: undefined | Q176: undefined | R176: supercritical | Z176: 250 | AA176: 20.1 | AB176: 517.97 | AC176: 0.0019306 | AD176: 676.44 | AE176: 715.25 | AF176: 1.5822 | AG176: 3.3056 | AH176: 5.3683 | AI176: 513.95 | AJ176: 0.56668 | AK176: undefined | AL176: undefined | AM176: supercritical
D177: -20.5980806 | F177: 20.6 | G177: 520.99 | H177: 0.0019194 | I177: 674.23 | J177: 713.77 | K177: 1.5775 | L177: 3.2998 | M177: 5.3157 | N177: 522.03 | O177: 0.54049 | P177: undefined | Q177: undefined | R177: supercritical | Z177: 250 | AA177: 20.6 | AB177: 520.99 | AC177: 0.0019194 | AD177: 674.23 | AE177: 713.77 | AF177: 1.5775 | AG177: 3.2998 | AH177: 5.3157 | AI177: 522.03 | AJ177: 0.54049 | AK177: undefined | AL177: undefined | AM177: supercritical
D178: -21.0980912 | F178: 21.1 | G178: 523.89 | H178: 0.0019088 | I178: 672.1 | J178: 712.37 | K178: 1.573 | L178: 3.2943 | M178: 5.2669 | N178: 529.87 | O178: 0.51611 | P178: undefined | Q178: undefined | R178: supercritical | Z178: 250 | AA178: 21.1 | AB178: 523.89 | AC178: 0.0019088 | AD178: 672.1 | AE178: 712.37 | AF178: 1.573 | AG178: 3.2943 | AH178: 5.2669 | AI178: 529.87 | AJ178: 0.51611 | AK178: undefined | AL178: undefined | AM178: supercritical
D179: -21.5981013 | F179: 21.6 | G179: 526.69 | H179: 0.0018987 | I179: 670.04 | J179: 711.05 | K179: 1.5687 | L179: 3.2892 | M179: 5.2214 | N179: 537.5 | O179: 0.49334 | P179: undefined | Q179: undefined | R179: supercritical | Z179: 250 | AA179: 21.6 | AB179: 526.69 | AC179: 0.0018987 | AD179: 670.04 | AE179: 711.05 | AF179: 1.5687 | AG179: 3.2892 | AH179: 5.2214 | AI179: 537.5 | AJ179: 0.49334 | AK179: undefined | AL179: undefined | AM179: supercritical
D180: -22.098111 | F180: 22.1 | G180: 529.39 | H180: 0.001889 | I180: 668.05 | J180: 709.79 | K180: 1.5645 | L180: 3.2843 | M180: 5.1789 | N180: 544.94 | O180: 0.47203 | P180: undefined | Q180: undefined | R180: supercritical | Z180: 250 | AA180: 22.1 | AB180: 529.39 | AC180: 0.001889 | AD180: 668.05 | AE180: 709.79 | AF180: 1.5645 | AG180: 3.2843 | AH180: 5.1789 | AI180: 544.94 | AJ180: 0.47203 | AK180: undefined | AL180: undefined | AM180: supercritical
D181: -22.5981203 | F181: 22.6 | G181: 532 | H181: 0.0018797 | I181: 666.12 | J181: 708.6 | K181: 1.5604 | L181: 3.2797 | M181: 5.139 | N181: 552.19 | O181: 0.45201 | P181: undefined | Q181: undefined | R181: supercritical | Z181: 250 | AA181: 22.6 | AB181: 532 | AC181: 0.0018797 | AD181: 666.12 | AE181: 708.6 | AF181: 1.5604 | AG181: 3.2797 | AH181: 5.139 | AI181: 552.19 | AJ181: 0.45201 | AK181: undefined | AL181: undefined | AM181: supercritical
D182: -23.0981292 | F182: 23.1 | G182: 534.53 | H182: 0.0018708 | I182: 664.25 | J182: 707.47 | K182: 1.5564 | L182: 3.2753 | M182: 5.1015 | N182: 559.27 | O182: 0.43317 | P182: undefined | Q182: undefined | R182: supercritical | Z182: 250 | AA182: 23.1 | AB182: 534.53 | AC182: 0.0018708 | AD182: 664.25 | AE182: 707.47 | AF182: 1.5564 | AG182: 3.2753 | AH182: 5.1015 | AI182: 559.27 | AJ182: 0.43317 | AK182: undefined | AL182: undefined | AM182: supercritical
D183: -23.5981377 | F183: 23.6 | G183: 536.98 | H183: 0.0018623 | I183: 662.44 | J183: 706.39 | K183: 1.5526 | L183: 3.271 | M183: 5.0662 | N183: 566.2 | O183: 0.41541 | P183: undefined | Q183: undefined | R183: supercritical | Z183: 250 | AA183: 23.6 | AB183: 536.98 | AC183: 0.0018623 | AD183: 662.44 | AE183: 706.39 | AF183: 1.5526 | AG183: 3.271 | AH183: 5.0662 | AI183: 566.2 | AJ183: 0.41541 | AK183: undefined | AL183: undefined | AM183: supercritical
D184: -24.098146 | F184: 24.1 | G184: 539.36 | H184: 0.001854 | I184: 660.68 | J184: 705.36 | K184: 1.5489 | L184: 3.267 | M184: 5.0329 | N184: 572.97 | O184: 0.39861 | P184: undefined | Q184: undefined | R184: supercritical | Z184: 250 | AA184: 24.1 | AB184: 539.36 | AC184: 0.001854 | AD184: 660.68 | AE184: 705.36 | AF184: 1.5489 | AG184: 3.267 | AH184: 5.0329 | AI184: 572.97 | AJ184: 0.39861 | AK184: undefined | AL184: undefined | AM184: supercritical
D185: -24.5981539 | F185: 24.6 | G185: 541.67 | H185: 0.0018461 | I185: 658.97 | J185: 704.38 | K185: 1.5452 | L185: 3.2632 | M185: 5.0013 | N185: 579.6 | O185: 0.3827 | P185: undefined | Q185: undefined | R185: supercritical | Z185: 250 | AA185: 24.6 | AB185: 541.67 | AC185: 0.0018461 | AD185: 658.97 | AE185: 704.38 | AF185: 1.5452 | AG185: 3.2632 | AH185: 5.0013 | AI185: 579.6 | AJ185: 0.3827 | AK185: undefined | AL185: undefined | AM185: supercritical
D186: -25.0981615 | F186: 25.1 | G186: 543.92 | H186: 0.0018385 | I186: 657.3 | J186: 703.45 | K186: 1.5417 | L186: 3.2595 | M186: 4.9714 | N186: 586.11 | O186: 0.36761 | P186: undefined | Q186: undefined | R186: supercritical | Z186: 250 | AA186: 25.1 | AB186: 543.92 | AC186: 0.0018385 | AD186: 657.3 | AE186: 703.45 | AF186: 1.5417 | AG186: 3.2595 | AH186: 4.9714 | AI186: 586.11 | AJ186: 0.36761 | AK186: undefined | AL186: undefined | AM186: supercritical
D187: -25.5981689 | F187: 25.6 | G187: 546.11 | H187: 0.0018311 | I187: 655.68 | J187: 702.56 | K187: 1.5382 | L187: 3.256 | M187: 4.9429 | N187: 592.48 | O187: 0.35327 | P187: undefined | Q187: undefined | R187: supercritical | Z187: 250 | AA187: 25.6 | AB187: 546.11 | AC187: 0.0018311 | AD187: 655.68 | AE187: 702.56 | AF187: 1.5382 | AG187: 3.256 | AH187: 4.9429 | AI187: 592.48 | AJ187: 0.35327 | AK187: undefined | AL187: undefined | AM187: supercritical
D188: -26.098176 | F188: 26.1 | G188: 548.25 | H188: 0.001824 | I188: 654.1 | J188: 701.7 | K188: 1.5348 | L188: 3.2526 | M188: 4.9158 | N188: 598.75 | O188: 0.33961 | P188: undefined | Q188: undefined | R188: supercritical | Z188: 250 | AA188: 26.1 | AB188: 548.25 | AC188: 0.001824 | AD188: 654.1 | AE188: 701.7 | AF188: 1.5348 | AG188: 3.2526 | AH188: 4.9158 | AI188: 598.75 | AJ188: 0.33961 | AK188: undefined | AL188: undefined | AM188: supercritical
D189: -26.5981829 | F189: 26.6 | G189: 550.33 | H189: 0.0018171 | I189: 652.55 | J189: 700.89 | K189: 1.5315 | L189: 3.2493 | M189: 4.89 | N189: 604.9 | O189: 0.3266 | P189: undefined | Q189: undefined | R189: supercritical | Z189: 250 | AA189: 26.6 | AB189: 550.33 | AC189: 0.0018171 | AD189: 652.55 | AE189: 700.89 | AF189: 1.5315 | AG189: 3.2493 | AH189: 4.89 | AI189: 604.9 | AJ189: 0.3266 | AK189: undefined | AL189: undefined | AM189: supercritical
D190: -27.0981896 | F190: 27.1 | G190: 552.36 | H190: 0.0018104 | I190: 651.04 | J190: 700.1 | K190: 1.5283 | L190: 3.2462 | M190: 4.8654 | N190: 610.95 | O190: 0.31417 | P190: undefined | Q190: undefined | R190: supercritical | Z190: 250 | AA190: 27.1 | AB190: 552.36 | AC190: 0.0018104 | AD190: 651.04 | AE190: 700.1 | AF190: 1.5283 | AG190: 3.2462 | AH190: 4.8654 | AI190: 610.95 | AJ190: 0.31417 | AK190: undefined | AL190: undefined | AM190: supercritical
D191: -27.5981961 | F191: 27.6 | G191: 554.35 | H191: 0.0018039 | I191: 649.57 | J191: 699.36 | K191: 1.5251 | L191: 3.2431 | M191: 4.8418 | N191: 616.9 | O191: 0.30229 | P191: undefined | Q191: undefined | R191: supercritical | Z191: 250 | AA191: 27.6 | AB191: 554.35 | AC191: 0.0018039 | AD191: 649.57 | AE191: 699.36 | AF191: 1.5251 | AG191: 3.2431 | AH191: 4.8418 | AI191: 616.9 | AJ191: 0.30229 | AK191: undefined | AL191: undefined | AM191: supercritical
D192: -28.0982024 | F192: 28.1 | G192: 556.29 | H192: 0.0017976 | I192: 648.13 | J192: 698.64 | K192: 1.522 | L192: 3.2402 | M192: 4.8192 | N192: 622.76 | O192: 0.29092 | P192: undefined | Q192: undefined | R192: supercritical | Z192: 250 | AA192: 28.1 | AB192: 556.29 | AC192: 0.0017976 | AD192: 648.13 | AE192: 698.64 | AF192: 1.522 | AG192: 3.2402 | AH192: 4.8192 | AI192: 622.76 | AJ192: 0.29092 | AK192: undefined | AL192: undefined | AM192: supercritical
D193: -28.5982085 | F193: 28.6 | G193: 558.18 | H193: 0.0017915 | I193: 646.72 | J193: 697.95 | K193: 1.519 | L193: 3.2373 | M193: 4.7976 | N193: 628.52 | O193: 0.28002 | P193: undefined | Q193: undefined | R193: supercritical | Z193: 250 | AA193: 28.6 | AB193: 558.18 | AC193: 0.0017915 | AD193: 646.72 | AE193: 697.95 | AF193: 1.519 | AG193: 3.2373 | AH193: 4.7976 | AI193: 628.52 | AJ193: 0.28002 | AK193: undefined | AL193: undefined | AM193: supercritical
D194: -29.0982144 | F194: 29.1 | G194: 560.04 | H194: 0.0017856 | I194: 645.34 | J194: 697.3 | K194: 1.5161 | L194: 3.2345 | M194: 4.7768 | N194: 634.2 | O194: 0.26957 | P194: undefined | Q194: undefined | R194: supercritical | Z194: 250 | AA194: 29.1 | AB194: 560.04 | AC194: 0.0017856 | AD194: 645.34 | AE194: 697.3 | AF194: 1.5161 | AG194: 3.2345 | AH194: 4.7768 | AI194: 634.2 | AJ194: 0.26957 | AK194: undefined | AL194: undefined | AM194: supercritical
D195: -29.5982202 | F195: 29.6 | G195: 561.86 | H195: 0.0017798 | I195: 643.98 | J195: 696.67 | K195: 1.5131 | L195: 3.2319 | M195: 4.7568 | N195: 639.81 | O195: 0.25953 | P195: undefined | Q195: undefined | R195: supercritical | Z195: 250 | AA195: 29.6 | AB195: 561.86 | AC195: 0.0017798 | AD195: 643.98 | AE195: 696.67 | AF195: 1.5131 | AG195: 3.2319 | AH195: 4.7568 | AI195: 639.81 | AJ195: 0.25953 | AK195: undefined | AL195: undefined | AM195: supercritical
D196: -30.0982258 | F196: 30.1 | G196: 563.63 | H196: 0.0017742 | I196: 642.66 | J196: 696.06 | K196: 1.5103 | L196: 3.2293 | M196: 4.7376 | N196: 645.33 | O196: 0.24989 | P196: undefined | Q196: undefined | R196: supercritical | Z196: 250 | AA196: 30.1 | AB196: 563.63 | AC196: 0.0017742 | AD196: 642.66 | AE196: 696.06 | AF196: 1.5103 | AG196: 3.2293 | AH196: 4.7376 | AI196: 645.33 | AJ196: 0.24989 | AK196: undefined | AL196: undefined | AM196: supercritical
D197: -30.5982313 | F197: 30.6 | G197: 565.38 | H197: 0.0017687 | I197: 641.36 | J197: 695.48 | K197: 1.5075 | L197: 3.2267 | M197: 4.7191 | N197: 650.78 | O197: 0.2406 | P197: undefined | Q197: undefined | R197: supercritical | Z197: 250 | AA197: 30.6 | AB197: 565.38 | AC197: 0.0017687 | AD197: 641.36 | AE197: 695.48 | AF197: 1.5075 | AG197: 3.2267 | AH197: 4.7191 | AI197: 650.78 | AJ197: 0.2406 | AK197: undefined | AL197: undefined | AM197: supercritical
D198: =H198-F198 -> -31.0982366 | F198: 31.1 | G198: 567.09 | H198: 0.0017634 | I198: 640.08 | J198: 694.93 | K198: 1.5047 | L198: 3.2243 | M198: 4.7012 | N198: 656.16 | O198: 0.23167 | P198: undefined | Q198: undefined | R198: supercritical | Z198: 250 | AA198: 31.1 | AB198: 567.09 | AC198: 0.0017634 | AD198: 640.08 | AE198: 694.93 | AF198: 1.5047 | AG198: 3.2243 | AH198: 4.7012 | AI198: 656.16 | AJ198: 0.23167 | AK198: undefined | AL198: undefined | AM198: supercritical
D199: -31.5982418 | F199: 31.6 | G199: 568.77 | H199: 0.0017582 | I199: 638.83 | J199: 694.39 | K199: 1.502 | L199: 3.2219 | M199: 4.684 | N199: 661.47 | O199: 0.22305 | P199: undefined | Q199: undefined | R199: supercritical | Z199: 250 | AA199: 31.6 | AB199: 568.77 | AC199: 0.0017582 | AD199: 638.83 | AE199: 694.39 | AF199: 1.502 | AG199: 3.2219 | AH199: 4.684 | AI199: 661.47 | AJ199: 0.22305 | AK199: undefined | AL199: undefined | AM199: supercritical
D200: -32.0982469 | F200: 32.1 | G200: 570.41 | H200: 0.0017531 | I200: 637.6 | J200: 693.88 | K200: 1.4994 | L200: 3.2195 | M200: 4.6674 | N200: 666.71 | O200: 0.21474 | P200: undefined | Q200: undefined | R200: supercritical | Z200: 250 | AA200: 32.1 | AB200: 570.41 | AC200: 0.0017531 | AD200: 637.6 | AE200: 693.88 | AF200: 1.4994 | AG200: 3.2195 | AH200: 4.6674 | AI200: 666.71 | AJ200: 0.21474 | AK200: undefined | AL200: undefined | AM200: supercritical
D201: -32.5982518 | F201: 32.6 | G201: 572.03 | H201: 0.0017482 | I201: 636.4 | J201: 693.39 | K201: 1.4968 | L201: 3.2173 | M201: 4.6513 | N201: 671.89 | O201: 0.20673 | P201: undefined | Q201: undefined | R201: supercritical | Z201: 250 | AA201: 32.6 | AB201: 572.03 | AC201: 0.0017482 | AD201: 636.4 | AE201: 693.39 | AF201: 1.4968 | AG201: 3.2173 | AH201: 4.6513 | AI201: 671.89 | AJ201: 0.20673 | AK201: undefined | AL201: undefined | AM201: supercritical
D202: -33.0982567 | F202: 33.1 | G202: 573.61 | H202: 0.0017433 | I202: 635.21 | J202: 692.92 | K202: 1.4942 | L202: 3.215 | M202: 4.6358 | N202: 677.01 | O202: 0.19898 | P202: undefined | Q202: undefined | R202: supercritical | Z202: 250 | AA202: 33.1 | AB202: 573.61 | AC202: 0.0017433 | AD202: 635.21 | AE202: 692.92 | AF202: 1.4942 | AG202: 3.215 | AH202: 4.6358 | AI202: 677.01 | AJ202: 0.19898 | AK202: undefined | AL202: undefined | AM202: supercritical
D203: -33.5982614 | F203: 33.6 | G203: 575.17 | H203: 0.0017386 | I203: 634.05 | J203: 692.47 | K203: 1.4917 | L203: 3.2129 | M203: 4.6207 | N203: 682.08 | O203: 0.19149 | P203: undefined | Q203: undefined | R203: supercritical | Z203: 250 | AA203: 33.6 | AB203: 575.17 | AC203: 0.0017386 | AD203: 634.05 | AE203: 692.47 | AF203: 1.4917 | AG203: 3.2129 | AH203: 4.6207 | AI203: 682.08 | AJ203: 0.19149 | AK203: undefined | AL203: undefined | AM203: supercritical
D204: -34.098266 | F204: 34.1 | G204: 576.71 | H204: 0.001734 | I204: 632.9 | J204: 692.03 | K204: 1.4892 | L204: 3.2107 | M204: 4.6061 | N204: 687.08 | O204: 0.18425 | P204: undefined | Q204: undefined | R204: supercritical | Z204: 250 | AA204: 34.1 | AB204: 576.71 | AC204: 0.001734 | AD204: 632.9 | AE204: 692.03 | AF204: 1.4892 | AG204: 3.2107 | AH204: 4.6061 | AI204: 687.08 | AJ204: 0.18425 | AK204: undefined | AL204: undefined | AM204: supercritical
D205: -34.5982705 | F205: 34.6 | G205: 578.21 | H205: 0.0017295 | I205: 631.78 | J205: 691.62 | K205: 1.4867 | L205: 3.2086 | M205: 4.592 | N205: 692.03 | O205: 0.17724 | P205: undefined | Q205: undefined | R205: supercritical | Z205: 250 | AA205: 34.6 | AB205: 578.21 | AC205: 0.0017295 | AD205: 631.78 | AE205: 691.62 | AF205: 1.4867 | AG205: 3.2086 | AH205: 4.592 | AI205: 692.03 | AJ205: 0.17724 | AK205: undefined | AL205: undefined | AM205: supercritical
D206: -35.098275 | F206: 35.1 | G206: 579.7 | H206: 0.001725 | I206: 630.67 | J206: 691.22 | K206: 1.4843 | L206: 3.2066 | M206: 4.5783 | N206: 696.93 | O206: 0.17046 | P206: undefined | Q206: undefined | R206: supercritical | Z206: 250 | AA206: 35.1 | AB206: 579.7 | AC206: 0.001725 | AD206: 630.67 | AE206: 691.22 | AF206: 1.4843 | AG206: 3.2066 | AH206: 4.5783 | AI206: 696.93 | AJ206: 0.17046 | AK206: undefined | AL206: undefined | AM206: supercritical
D207: -35.5982793 | F207: 35.6 | G207: 581.15 | H207: 0.0017207 | I207: 629.58 | J207: 690.84 | K207: 1.4819 | L207: 3.2046 | M207: 4.565 | N207: 701.78 | O207: 0.16388 | P207: undefined | Q207: undefined | R207: supercritical | Z207: 250 | AA207: 35.6 | AB207: 581.15 | AC207: 0.0017207 | AD207: 629.58 | AE207: 690.84 | AF207: 1.4819 | AG207: 3.2046 | AH207: 4.565 | AI207: 701.78 | AJ207: 0.16388 | AK207: undefined | AL207: undefined | AM207: supercritical
D208: -36.0982835 | F208: 36.1 | G208: 582.59 | H208: 0.0017165 | I208: 628.51 | J208: 690.47 | K208: 1.4796 | L208: 3.2027 | M208: 4.5521 | N208: 706.58 | O208: 0.1575 | P208: undefined | Q208: undefined | R208: supercritical | Z208: 250 | AA208: 36.1 | AB208: 582.59 | AC208: 0.0017165 | AD208: 628.51 | AE208: 690.47 | AF208: 1.4796 | AG208: 3.2027 | AH208: 4.5521 | AI208: 706.58 | AJ208: 0.1575 | AK208: undefined | AL208: undefined | AM208: supercritical
D209: -36.5982877 | F209: 36.6 | G209: 584 | H209: 0.0017123 | I209: 627.45 | J209: 690.12 | K209: 1.4773 | L209: 3.2007 | M209: 4.5396 | N209: 711.33 | O209: 0.15132 | P209: undefined | Q209: undefined | R209: supercritical | Z209: 250 | AA209: 36.6 | AB209: 584 | AC209: 0.0017123 | AD209: 627.45 | AE209: 690.12 | AF209: 1.4773 | AG209: 3.2007 | AH209: 4.5396 | AI209: 711.33 | AJ209: 0.15132 | AK209: undefined | AL209: undefined | AM209: supercritical
D210: -37.0982917 | F210: 37.1 | G210: 585.39 | H210: 0.0017083 | I210: 626.41 | J210: 689.78 | K210: 1.475 | L210: 3.1989 | M210: 4.5274 | N210: 716.03 | O210: 0.14532 | P210: undefined | Q210: undefined | R210: supercritical | Z210: 250 | AA210: 37.1 | AB210: 585.39 | AC210: 0.0017083 | AD210: 626.41 | AE210: 689.78 | AF210: 1.475 | AG210: 3.1989 | AH210: 4.5274 | AI210: 716.03 | AJ210: 0.14532 | AK210: undefined | AL210: undefined | AM210: supercritical
D211: -37.5982957 | F211: 37.6 | G211: 586.76 | H211: 0.0017043 | I211: 625.38 | J211: 689.46 | K211: 1.4728 | L211: 3.197 | M211: 4.5155 | N211: 720.69 | O211: 0.13949 | P211: undefined | Q211: undefined | R211: supercritical | Z211: 250 | AA211: 37.6 | AB211: 586.76 | AC211: 0.0017043 | AD211: 625.38 | AE211: 689.46 | AF211: 1.4728 | AG211: 3.197 | AH211: 4.5155 | AI211: 720.69 | AJ211: 0.13949 | AK211: undefined | AL211: undefined | AM211: supercritical
D212: -38.0982996 | F212: 38.1 | G212: 588.11 | H212: 0.0017004 | I212: 624.37 | J212: 689.15 | K212: 1.4706 | L212: 3.1952 | M212: 4.504 | N212: 725.3 | O212: 0.13383 | P212: undefined | Q212: undefined | R212: supercritical | Z212: 250 | AA212: 38.1 | AB212: 588.11 | AC212: 0.0017004 | AD212: 624.37 | AE212: 689.15 | AF212: 1.4706 | AG212: 3.1952 | AH212: 4.504 | AI212: 725.3 | AJ212: 0.13383 | AK212: undefined | AL212: undefined | AM212: supercritical
D213: -38.5983035 | F213: 38.6 | G213: 589.44 | H213: 0.0016965 | I213: 623.37 | J213: 688.86 | K213: 1.4684 | L213: 3.1934 | M213: 4.4927 | N213: 729.87 | O213: 0.12833 | P213: undefined | Q213: undefined | R213: supercritical | Z213: 250 | AA213: 38.6 | AB213: 589.44 | AC213: 0.0016965 | AD213: 623.37 | AE213: 688.86 | AF213: 1.4684 | AG213: 3.1934 | AH213: 4.4927 | AI213: 729.87 | AJ213: 0.12833 | AK213: undefined | AL213: undefined | AM213: supercritical
D214: -39.0983072 | F214: 39.1 | G214: 590.75 | H214: 0.0016928 | I214: 622.39 | J214: 688.58 | K214: 1.4662 | L214: 3.1917 | M214: 4.4818 | N214: 734.4 | O214: 0.12298 | P214: undefined | Q214: undefined | R214: supercritical | Z214: 250 | AA214: 39.1 | AB214: 590.75 | AC214: 0.0016928 | AD214: 622.39 | AE214: 688.58 | AF214: 1.4662 | AG214: 3.1917 | AH214: 4.4818 | AI214: 734.4 | AJ214: 0.12298 | AK214: undefined | AL214: undefined | AM214: supercritical
D215: -39.5983109 | F215: 39.6 | G215: 592.04 | H215: 0.0016891 | I215: 621.42 | J215: 688.31 | K215: 1.4641 | L215: 3.19 | M215: 4.4711 | N215: 738.89 | O215: 0.11778 | P215: undefined | Q215: undefined | R215: supercritical | Z215: 250 | AA215: 39.6 | AB215: 592.04 | AC215: 0.0016891 | AD215: 621.42 | AE215: 688.31 | AF215: 1.4641 | AG215: 3.19 | AH215: 4.4711 | AI215: 738.89 | AJ215: 0.11778 | AK215: undefined | AL215: undefined | AM215: supercritical
D216: -40.0983146 | F216: 40.1 | G216: 593.32 | H216: 0.0016854 | I216: 620.46 | J216: 688.05 | K216: 1.462 | L216: 3.1883 | M216: 4.4607 | N216: 743.34 | O216: 0.11271 | P216: undefined | Q216: undefined | R216: supercritical | Z216: 250 | AA216: 40.1 | AB216: 593.32 | AC216: 0.0016854 | AD216: 620.46 | AE216: 688.05 | AF216: 1.462 | AG216: 3.1883 | AH216: 4.4607 | AI216: 743.34 | AJ216: 0.11271 | AK216: undefined | AL216: undefined | AM216: supercritical

Sheet universal coefficients
D7: a0(0) = 0.9105631445 | G7: b0(0) = 0.7240946941 | W7: Table 2. Pure-Component Parameters for Nonassociating Substances | AE7: Table 2. Pure-Component Parameters for Nonassociating Substances
D8: a1(0) = -0.3084016918 | G8: b1(0) = -0.5755498075
D9: a2(0) = -0.0906148351 | G9: b2(0) = 0.0976883116
D10: a0(1) = 0.6361281449 | G10: b0(1) = 2.2382791861 | W10: substance | X10: M [g/mol] | Y10: m [−] | Z10: σ [Å] | AA10: ε/k [K] | AB10: T range [K] | AE10: substance | AF10: M [g/mol] | AG10: m [−] | AH10: σ [Å] | AI10: ε/k [K] | AJ10: T range [K]
D11: a1(1) = 0.1860531159 | G11: b1(1) = 0.6995095521 | W11: n-alkanes | AE11: n-alkanes
D12: a2(1) = 0.4527842806 | G12: b2(1) = -0.2557574982 | W12: methane | X12: 16.043 | Y12: 1 | Z12: 3.7039 | AA12: 150.03 | AB12: 97−300 | AE12: methane | AF12: 16.043 | AG12: 1 | AH12: 3.7039 | AI12: 150.03 | AJ12: 97−300
D13: a0(2) = 2.6861347891 | G13: b0(2) = -4.0025849485 | W13: ethane | X13: 30.07 | Y13: 1.6069 | Z13: 3.5206 | AA13: 191.42 | AB13: 90−305 | AE13: ethane | AF13: 30.07 | AG13: 1.6069 | AH13: 3.5206 | AI13: 191.42 | AJ13: 90−305
D14: a1(2) = -2.5030047259 | G14: b1(2) = 3.892567339 | W14: propane | X14: 44.096 | Y14: 2.002 | Z14: 3.6184 | AA14: 208.11 | AB14: 85−523 | AE14: propane | AF14: 44.096 | AG14: 2.002 | AH14: 3.6184 | AI14: 208.11 | AJ14: 85−523
D15: a2(2) = 0.5962700728 | G15: b2(2) = -9.155856153 | W15: butane | X15: 58.123 | Y15: 2.3316 | Z15: 3.7086 | AA15: 222.88 | AB15: 135−573 | AE15: decane | AF15: 142.285 | AG15: 4.6627 | AH15: 3.8384 | AI15: 243.87 | AJ15: 243−617
D16: a0(3) = -26.547362491 | G16: b0(3) = -21.003576815 | W16: pentane | X16: 72.146 | Y16: 2.6896 | Z16: 3.7729 | AA16: 231.2 | AB16: 143−469 | AE16: eicosane | AF16: 282.553 | AG16: 7.9849 | AH16: 3.9869 | AI16: 257.75 | AJ16: 309−775
D17: a1(3) = 21.419793629 | G17: b1(3) = -17.215471648 | W17: hexane | X17: 86.177 | Y17: 3.0576 | Z17: 3.7983 | AA17: 236.77 | AB17: 177−503 | AE17: branched alkanes
D18: a2(3) = -1.7241829131 | G18: b2(3) = 20.642075974 | W18: heptane | X18: 100.203 | Y18: 3.4831 | Z18: 3.8049 | AA18: 238.4 | AB18: 182−623 | AE18: isobutane | AF18: 58.123 | AG18: 2.2616 | AH18: 3.7574 | AI18: 216.53 | AJ18: 113−407
D19: a0(4) = 97.759208784 | G19: b0(4) = 26.855641363 | W19: octane | X19: 114.231 | Y19: 3.8176 | Z19: 3.8373 | AA19: 242.78 | AB19: 216−569 | AE19: isopentane | AF19: 72.15 | AG19: 2.562 | AH19: 3.8296 | AI19: 230.75 | AJ19: 113−460
D20: a1(4) = -65.25588533 | G20: b1(4) = 192.67226447 | W20: nonane | X20: 128.25 | Y20: 4.2079 | Z20: 3.8448 | AA20: 244.51 | AB20: 219−595 | AE20: cycloalkanes
D21: a2(4) = -4.1302112531 | G21: b2(4) = -38.804430052 | W21: decane | X21: 142.285 | Y21: 4.6627 | Z21: 3.8384 | AA21: 243.87 | AB21: 243−617 | AE21: cyclopentane | AF21: 70.13 | AG21: 2.3655 | AH21: 3.7114 | AI21: 265.83 | AJ21: 193−503
D22: a0(5) = -159.59154087 | G22: b0(5) = 206.55133841 | W22: undecane | X22: 156.312 | Y22: 4.9082 | Z22: 3.8893 | AA22: 248.82 | AB22: 247−639 | AE22: cyclohexane | AF22: 84.147 | AG22: 2.5303 | AH22: 3.8499 | AI22: 278.11 | AJ22: 279−553
D23: a1(5) = 83.318680481 | G23: b1(5) = -161.82646165 | W23: dodecane | X23: 170.338 | Y23: 5.306 | Z23: 3.8959 | AA23: 249.21 | AB23: 263−658 | AE23: alkenes
D24: a2(5) = 13.77663187 | G24: b2(5) = 93.626774077 | W24: tridecane | X24: 184.365 | Y24: 5.6877 | Z24: 3.9143 | AA24: 249.78 | AB24: 267−675 | AE24: ethylene | AF24: 28.05 | AG24: 1.593 | AH24: 3.445 | AI24: 176.47 | AJ24: 104−400
D25: a0(6) = 91.297774084 | G25: b0(6) = -355.60235612 | W25: tetradecane | X25: 198.392 | Y25: 5.9002 | Z25: 3.9396 | AA25: 254.21 | AB25: 279−693 | AE25: 1-octene | AF25: 112.215 | AG25: 3.7424 | AH25: 3.8133 | AI25: 243.02 | AJ25: 171−567
D26: a1(6) = -33.74692293 | G26: b1(6) = -165.20769346 | W26: pentadecane | X26: 212.419 | Y26: 6.2855 | Z26: 3.9531 | AA26: 254.14 | AB26: 283−708 | AE26: benzene derivatives
D27: a2(6) = -8.6728470368 | G27: b2(6) = -29.666905585 | W27: hexadecane | X27: 226.446 | Y27: 6.6485 | Z27: 3.9552 | AA27: 254.7 | AB27: 291−723 | AE27: benzene | AF27: 78.114 | AG27: 2.4653 | AH27: 3.6478 | AI27: 287.35 | AJ27: 278−562
W28: heptadecane | X28: 240.473 | Y28: 6.9809 | Z28: 3.9675 | AA28: 255.65 | AB28: 295−736 | AE28: toluene | AF28: 92.141 | AG28: 2.8149 | AH28: 3.7169 | AI28: 285.69 | AJ28: 178−594
W29: octadecane | X29: 254.5 | Y29: 7.3271 | Z29: 3.9668 | AA29: 256.2 | AB29: 301−747 | AE29: biphenyl | AF29: 154.211 | AG29: 3.8877 | AH29: 3.8151 | AI29: 327.42 | AJ29: 342−773
W30: nonadecane | X30: 268.527 | Y30: 7.7175 | Z30: 3.9721 | AA30: 256 | AB30: 305−758 | AE30: gases
W31: eicosane | X31: 282.553 | Y31: 7.9849 | Z31: 3.9869 | AA31: 257.75 | AB31: 309−775 | AE31: carbon monoxide | AF31: 28.01 | AG31: 1.3097 | AH31: 3.2507 | AI31: 92.15 | AJ31: 80−133
W32: branched alkanes | AE32: nitrogen | AF32: 28.01 | AG32: 1.2053 | AH32: 3.313 | AI32: 90.96 | AJ32: 63−126
W33: isobutane | X33: 58.123 | Y33: 2.2616 | Z33: 3.7574 | AA33: 216.53 | AB33: 113−407 | AE33: argon | AF33: 39.948 | AG33: 0.9285 | AH33: 3.4784 | AI33: 122.23 | AJ33: 84−151
W34: isopentane | X34: 72.15 | Y34: 2.562 | Z34: 3.8296 | AA34: 230.75 | AB34: 113−460 | AE34: carbon dioxide | AF34: 44.01 | AG34: 2.0729 | AH34: 2.7852 | AI34: 169.21 | AJ34: 216−304
W35: neopentane | X35: 72.15 | Y35: 2.3543 | Z35: 3.955 | AA35: 225.69 | AB35: 256−433 | AE35: halogenated hydrocarbons
W36: 2-methylpentane | X36: 86.177 | Y36: 2.9317 | Z36: 3.8535 | AA36: 235.58 | AB36: 119−498 | AE36: methyl chloride | AF36: 50.488 | AG36: 1.9297 | AH36: 3.2293 | AI36: 240.56 | AJ36: 175−416
W37: 2,2-dimethylbutane | X37: 86.177 | Y37: 2.6008 | Z37: 4.0042 | AA37: 243.51 | AB37: 174−488 | AE37: chlorobenzene | AF37: 112.558 | AG37: 2.6485 | AH37: 3.7533 | AI37: 315.04 | AJ37: 228−632
W38: 2,3-dimethylbutane | X38: 86.177 | Y38: 2.6853 | Z38: 3.9545 | AA38: 246.07 | AB38: 145−500 | AE38: ethers
W39: 3-methylpentane | X39: 86.177 | Y39: 2.8852 | Z39: 3.8605 | AA39: 240.48 | AB39: 110−504 | AE39: dimethyl ether | AF39: 46.069 | AG39: 2.3071 | AH39: 3.2528 | AI39: 211.06 | AJ39: 200−400
W40: 2-methylhexane | X40: 100.204 | Y40: 3.3478 | Z40: 3.8612 | AA40: 237.42 | AB40: 154−530 | AE40: diethyl ether | AF40: 74.123 | AG40: 2.9686 | AH40: 3.5147 | AI40: 220.09 | AJ40: 240−467
W41: cycloalkanes | AE41: esters
W42: cyclopentane | X42: 70.13 | Y42: 2.3655 | Z42: 3.7114 | AA42: 265.83 | AB42: 193−503 | AE42: methyl methanoate | AF42: 60.053 | AG42: 2.6784 | AH42: 3.0875 | AI42: 242.63 | AJ42: 174−487
W43: cyclohexane | X43: 84.147 | Y43: 2.5303 | Z43: 3.8499 | AA43: 278.11 | AB43: 279−553 | AE43: ethyl methanoate | AF43: 74.079 | AG43: 2.8876 | AH43: 3.3109 | AI43: 246.47 | AJ43: 193−508
W44: methylcyclopentane | X44: 84.156 | Y44: 2.613 | Z44: 3.8253 | AA44: 265.12 | AB44: 183−532
W45: methylcyclohexane | X45: 98.182 | Y45: 2.6637 | Z45: 3.9993 | AA45: 282.33 | AB45: 203−572
W46: ethylcyclopentane | X46: 98.182 | Y46: 2.9062 | Z46: 3.8873 | AA46: 270.5 | AB46: 134−569
W47: ethylcyclohexane | X47: 112.215 | Y47: 2.8256 | Z47: 4.1039 | AA47: 294.04 | AB47: 263−609
W48: alkenes
W49: ethylene | X49: 28.05 | Y49: 1.593 | Z49: 3.445 | AA49: 176.47 | AB49: 104−400
W50: propylene | X50: 42.081 | Y50: 1.9597 | Z50: 3.5356 | AA50: 207.19 | AB50: 87−364
W51: 1-butene | X51: 56.107 | Y51: 2.2864 | Z51: 3.6431 | AA51: 222 | AB51: 87−419
W52: 1-pentene | X52: 70.134 | Y52: 2.6006 | Z52: 3.7399 | AA52: 231.99 | AB52: 108−464
W53: 1-hexene | X53: 84.616 | Y53: 2.9853 | Z53: 3.7753 | AA53: 236.81 | AB53: 133−504
W54: 1-octene | X54: 112.215 | Y54: 3.7424 | Z54: 3.8133 | AA54: 243.02 | AB54: 171−567
W55: cyclopentene | X55: 68.114 | Y55: 2.2934 | Z55: 3.6668 | AA55: 267.76 | AB55: 223−393
W56: benzene derivatives
W57: benzene | X57: 78.114 | Y57: 2.4653 | Z57: 3.6478 | AA57: 287.35 | AB57: 278−562
W58: toluene | X58: 92.141 | Y58: 2.8149 | Z58: 3.7169 | AA58: 285.69 | AB58: 178−594
W59: ethylbenzene | X59: 106.167 | Y59: 3.0799 | Z59: 3.7974 | AA59: 287.35 | AB59: 178−617
W60: m-xylene | X60: 106.167 | Y60: 3.1861 | Z60: 3.7563 | AA60: 283.98 | AB60: 225−619
W61: o-xylene | X61: 106.167 | Y61: 3.1362 | Z61: 3.76 | AA61: 291.05 | AB61: 248−630
W62: p-xylene | X62: 106.167 | Y62: 3.1723 | Z62: 3.7781 | AA62: 283.77 | AB62: 286−616
W63: n-propylbenzene | X63: 120.194 | Y63: 3.3438 | Z63: 3.8438 | AA63: 288.13 | AB63: 173−638
W64: tetralin | X64: 132.205 | Y64: 3.3131 | Z64: 3.875 | AA64: 325.07 | AB64: 237−720
W65: n-butylbenzene | X65: 134.221 | Y65: 3.7662 | Z65: 3.8727 | AA65: 283.07 | AB65: 185−660
W66: biphenyl | X66: 154.211 | Y66: 3.8877 | Z66: 3.8151 | AA66: 327.42 | AB66: 342−773
W67: gases
W68: carbon monoxide | X68: 28.01 | Y68: 1.3097 | Z68: 3.2507 | AA68: 92.15 | AB68: 80−133
W69: nitrogen | X69: 28.01 | Y69: 1.2053 | Z69: 3.313 | AA69: 90.96 | AB69: 63−126
W70: argon | X70: 39.948 | Y70: 0.9285 | Z70: 3.4784 | AA70: 122.23 | AB70: 84−151
W71: carbon dioxide | X71: 44.01 | Y71: 2.0729 | Z71: 2.7852 | AA71: 169.21 | AB71: 216−304
W72: sulfur dioxide | X72: 64.065 | Y72: 2.8611 | Z72: 2.6826 | AA72: 205.35 | AB72: 198−431
W73: chlorine | X73: 70.905 | Y73: 1.5514 | Z73: 3.3672 | AA73: 265.67 | AB73: 172−417
W74: carbon disulfide | X74: 76.143 | Y74: 1.6919 | Z74: 3.6172 | AA74: 334.82 | AB74: 200−552
W75: halogenated hydrocarbons
W76: methyl chloride | X76: 50.488 | Y76: 1.9297 | Z76: 3.2293 | AA76: 240.56 | AB76: 175−416
W77: chloroethane | X77: 64.514 | Y77: 2.2638 | Z77: 3.416 | AA77: 245.43 | AB77: 134−460
W78: 2-chloropropane | X78: 78.541 | Y78: 2.4151 | Z78: 3.6184 | AA78: 251.47 | AB78: 156−489
W79: 1-chlorobutane | X79: 92.568 | Y79: 2.8585 | Z79: 3.6424 | AA79: 258.66 | AB79: 150−537
W80: chlorobenzene | X80: 112.558 | Y80: 2.6485 | Z80: 3.7533 | AA80: 315.04 | AB80: 228−632
W81: bromobenzene | X81: 157.01 | Y81: 2.6456 | Z81: 3.836 | AA81: 334.37 | AB81: 242−670
W82: ethers
W83: dimethyl ether | X83: 46.069 | Y83: 2.3071 | Z83: 3.2528 | AA83: 211.06 | AB83: 200−400
W84: diethyl ether | X84: 74.123 | Y84: 2.9686 | Z84: 3.5147 | AA84: 220.09 | AB84: 240−467
W85: methyl-n-propyl ether | X85: 74.123 | Y85: 3.0087 | Z85: 3.4569 | AA85: 222.73 | AB85: 220−476
W86: esters
W87: methyl methanoate | X87: 60.053 | Y87: 2.6784 | Z87: 3.0875 | AA87: 242.63 | AB87: 174−487
W88: ethyl methanoate | X88: 74.079 | Y88: 2.8876 | Z88: 3.3109 | AA88: 246.47 | AB88: 193−508
W89: n-propyl methanoate | X89: 88.106 | Y89: 3.2088 | Z89: 3.4168 | AA89: 246.46 | AB89: 270−538
W90: ethyl ethanoate | X90: 88.106 | Y90: 3.5375 | Z90: 3.3079 | AA90: 230.8 | AB90: 189−523
W91: n-propyl ethanoate | X91: 102.133 | Y91: 3.7861 | Z91: 3.4227 | AA91: 235.76 | AB91: 290−549
W92: n-butyl ethanoate | X92: 116.16 | Y92: 3.9808 | Z92: 3.5427 | AA92: 242.52 | AB92: 199−579
W93: isopropyl ethanoate | X93: 102.133 | Y93: 3.6084 | Z93: 3.4818 | AA93: 231.91 | AB93: 199−532
W94: methyl propanoate | X94: 88.106 | Y94: 3.4793 | Z94: 3.3142 | AA94: 234.96 | AB94: 185−530
W95: ethyl propanoate | X95: 102.133 | Y95: 3.8371 | Z95: 3.4031 | AA95: 232.78 | AB95: 199−546
W96: n-propyl propanoate | X96: 116.16 | Y96: 4.1155 | Z96: 3.4875 | AA96: 235.6 | AB96: 220−568
W97: methyl butanoate | X97: 102.133 | Y97: 3.6758 | Z97: 3.4437 | AA97: 240.62 | AB97: 187−554

Sheet Sheet3
B3: Table 2. Pure-Component Parameters for Nonassociating Substances
G5: AAD% | J5: refa
B6: substance | C6: M [g/mol] | D6: m [−] | E6: σ [Å] | F6: ε/k [K] | G6: Psat | H6: v | I6: T range [K] | J6: Psat | K6: v
B7: n-alkanes
B8: methane | C8: 16.043 | D8: 1 | E8: 3.7039 | F8: 150.03 | G8: 0.36 | H8: 0.67b | I8: 97−300 | J8: 1 | K8: 1,1
B9: ethane | C9: 30.07 | D9: 1.6069 | E9: 3.5206 | F9: 191.42 | G9: 0.3 | H9: 0.57 | I9: 90−305 | J9: 10 | K9: 4
B10: propane | C10: 44.096 | D10: 2.002 | E10: 3.6184 | F10: 208.11 | G10: 1.29 | H10: 0.77b | I10: 85−523 | J10: 2, 5 | K10: 4, 6, 3
B11: butane | C11: 58.123 | D11: 2.3316 | E11: 3.7086 | F11: 222.88 | G11: 0.75 | H11: 1.59b | I11: 135−573 | J11: 2, 12 | K11: 4, 7, 3
B12: pentane | C12: 72.146 | D12: 2.6896 | E12: 3.7729 | F12: 231.2 | G12: 1.45 | H12: 0.78 | I12: 143−469 | J12: 2, 5, 9 | K12: 4
B13: hexane | C13: 86.177 | D13: 3.0576 | E13: 3.7983 | F13: 236.77 | G13: 0.31 | H13: 0.76 | I13: 177−503 | J13: 2, 5, 9 | K13: 4
B14: heptane | C14: 100.203 | D14: 3.4831 | E14: 3.8049 | F14: 238.4 | G14: 0.34 | H14: 2.1b | I14: 182−623 | J14: 5, 7, 9 | K14: 4, 7, 3
B15: octane | C15: 114.231 | D15: 3.8176 | E15: 3.8373 | F15: 242.78 | G15: 0.77 | H15: 1.59b | I15: 216−569 | J15: 5, 9 | K15: 4, 6, 2
B16: nonane | C16: 128.25 | D16: 4.2079 | E16: 3.8448 | F16: 244.51 | G16: 0.89 | H16: 0.32 | I16: 219−595 | J16: 2, 5, 9 | K16: 4
B17: decane | C17: 142.285 | D17: 4.6627 | E17: 3.8384 | F17: 243.87 | G17: 0.24 | H17: 1.18b | I17: 243−617 | J17: 9, 11 | K17: 4, 12, 2
B18: undecane | C18: 156.312 | D18: 4.9082 | E18: 3.8893 | F18: 248.82 | G18: 2.02 | H18: 0.69 | I18: 247−639 | J18: 2, 5, 9 | K18: 4
B19: dodecane | C19: 170.338 | D19: 5.306 | E19: 3.8959 | F19: 249.21 | G19: 2.1 | H19: 0.93 | I19: 263−658 | J19: 2, 5, 9 | K19: 4
B20: tridecane | C20: 184.365 | D20: 5.6877 | E20: 3.9143 | F20: 249.78 | G20: 3.15 | H20: 1.77 | I20: 267−675 | J20: 2, 5, 9 | K20: 4
B21: tetradecane | C21: 198.392 | D21: 5.9002 | E21: 3.9396 | F21: 254.21 | G21: 4.8 | H21: 1.28 | I21: 279−693 | J21: 2, 5, 9 | K21: 4, 5
B22: pentadecane | C22: 212.419 | D22: 6.2855 | E22: 3.9531 | F22: 254.14 | G22: 1.04 | H22: 5.35 | I22: 283−708 | J22: 2, 5, 9 | K22: 4, 5
B23: hexadecane | C23: 226.446 | D23: 6.6485 | E23: 3.9552 | F23: 254.7 | G23: 4.88 | H23: 0.75 | I23: 291−723 | J23: 2, 5, 9 | K23: 4, 5
B24: heptadecane | C24: 240.473 | D24: 6.9809 | E24: 3.9675 | F24: 255.65 | G24: 5.35 | H24: 0.69 | I24: 295−736 | J24: 2, 5, 9 | K24: 4, 5
B25: octadecane | C25: 254.5 | D25: 7.3271 | E25: 3.9668 | F25: 256.2 | G25: 4.99 | H25: 1.19 | I25: 301−747 | J25: 2, 5, 9 | K25: 4, 5
B26: nonadecane | C26: 268.527 | D26: 7.7175 | E26: 3.9721 | F26: 256 | G26: 5.08 | H26: 0.64 | I26: 305−758 | J26: 2, 5, 9 | K26: 4, 5
B27: eicosane | C27: 282.553 | D27: 7.9849 | E27: 3.9869 | F27: 257.75 | G27: 7.65 | H27: 1.13b | I27: 309−775 | J27: 2, 9, 11 | K27: 4, 5, 13
B28: branched alkanes
B29: isobutane | C29: 58.123 | D29: 2.2616 | E29: 3.7574 | F29: 216.53 | G29: 0.55 | H29: 1.47 | I29: 113−407 | J29: 5 | K29: 5
B30: isopentane | C30: 72.15 | D30: 2.562 | E30: 3.8296 | F30: 230.75 | G30: 0.4 | H30: 1.53 | I30: 113−460 | J30: 5 | K30: 5
B31: neopentane | C31: 72.15 | D31: 2.3543 | E31: 3.955 | F31: 225.69 | G31: 0.04 | H31: 0.38 | I31: 256−433 | J31: 5 | K31: 5
B32: 2-methylpentane | C32: 86.177 | D32: 2.9317 | E32: 3.8535 | F32: 235.58 | G32: 0.61 | H32: 0.59 | I32: 119−498 | J32: 5 | K32: 5
B33: 2,2-dimethylbutane | C33: 86.177 | D33: 2.6008 | E33: 4.0042 | F33: 243.51 | G33: 0.32 | H33: 0.21 | I33: 174−488 | J33: 5 | K33: 5
B34: 2,3-dimethylbutane | C34: 86.177 | D34: 2.6853 | E34: 3.9545 | F34: 246.07 | G34: 0.38 | H34: 0.46 | I34: 145−500 | J34: 5 | K34: 5
B35: 3-methylpentane | C35: 86.177 | D35: 2.8852 | E35: 3.8605 | F35: 240.48 | G35: 0.33 | H35: 0.65 | I35: 110−504 | J35: 5 | K35: 5
B36: 2-methylhexane | C36: 100.204 | D36: 3.3478 | E36: 3.8612 | F36: 237.42 | G36: 0.74 | H36: 1.44 | I36: 154−530 | J36: 5 | K36: 5
B37: cycloalkanes
B38: cyclopentane | C38: 70.13 | D38: 2.3655 | E38: 3.7114 | F38: 265.83 | G38: 0.69 | H38: 0.2 | I38: 193−503 | J38: 2 | K38: 2
B39: cyclohexane | C39: 84.147 | D39: 2.5303 | E39: 3.8499 | F39: 278.11 | G39: 0.53 | H39: 3.12 | I39: 279−553 | J39: 5 | K39: 5, 6, 12
B40: methylcyclopentane | C40: 84.156 | D40: 2.613 | E40: 3.8253 | F40: 265.12 | G40: 0.88 | H40: 0.37 | I40: 183−532 | J40: 2 | K40: 2
B41: methylcyclohexane | C41: 98.182 | D41: 2.6637 | E41: 3.9993 | F41: 282.33 | G41: 1.91 | H41: 0.31 | I41: 203−572 | J41: 2 | K41: 2
B42: ethylcyclopentane | C42: 98.182 | D42: 2.9062 | E42: 3.8873 | F42: 270.5 | G42: 2.55 | H42: 0.75 | I42: 134−569 | J42: 2, 5 | K42: 4, 5
B43: ethylcyclohexane | C43: 112.215 | D43: 2.8256 | E43: 4.1039 | F43: 294.04 | G43: 2.38 | H43: 1.04 | I43: 263−609 | J43: 2, 5 | K43: 4, 5
B44: alkenes
B45: ethylene | C45: 28.05 | D45: 1.593 | E45: 3.445 | F45: 176.47 | G45: 1.16 | H45: 2.61b | I45: 104−400 | J45: 16 | K45: 15, 15
B46: propylene | C46: 42.081 | D46: 1.9597 | E46: 3.5356 | F46: 207.19 | G46: 0.66 | H46: 1.41 | I46: 87−364 | J46: 2, 5, 12 | K46: 5, 12
B47: 1-butene | C47: 56.107 | D47: 2.2864 | E47: 3.6431 | F47: 222 | G47: 0.69 | H47: 0.52 | I47: 87−419 | J47: 2, 5, 12 | K47: 4, 5, 6
B48: 1-pentene | C48: 70.134 | D48: 2.6006 | E48: 3.7399 | F48: 231.99 | G48: 0.31 | H48: 1.04 | I48: 108−464 | J48: 2, 5, 14 | K48: 5
B49: 1-hexene | C49: 84.616 | D49: 2.9853 | E49: 3.7753 | F49: 236.81 | G49: 0.42 | H49: 1.23 | I49: 133−504 | J49: 2, 5, 14 | K49: 5
B50: 1-octene | C50: 112.215 | D50: 3.7424 | E50: 3.8133 | F50: 243.02 | G50: 0.79 | H50: 0.75 | I50: 171−567 | J50: 5, 14 | K50: 5
B51: cyclopentene | C51: 68.114 | D51: 2.2934 | E51: 3.6668 | F51: 267.76 | G51: 0.14 | H51: 0.07 | I51: 223−393 | J51: 2 | K51: 2
B52: benzene derivatives
B53: benzene | C53: 78.114 | D53: 2.4653 | E53: 3.6478 | F53: 287.35 | G53: 0.64 | H53: 1.42 | I53: 278−562 | J53: 5, 12 | K53: 5, 12
B54: toluene | C54: 92.141 | D54: 2.8149 | E54: 3.7169 | F54: 285.69 | G54: 2.41 | H54: 1.35 | I54: 178−594 | J54: 2, 5, 12 | K54: 5, 12
B55: ethylbenzene | C55: 106.167 | D55: 3.0799 | E55: 3.7974 | F55: 287.35 | G55: 0.41 | H55: 1.05 | I55: 178−617 | J55: 5 | K55: 5
B56: m-xylene | C56: 106.167 | D56: 3.1861 | E56: 3.7563 | F56: 283.98 | G56: 1.08 | H56: 1.05 | I56: 225−619 | J56: 2, 5, 12 | K56: 5, 12
B57: o-xylene | C57: 106.167 | D57: 3.1362 | E57: 3.76 | F57: 291.05 | G57: 0.64 | H57: 1.15 | I57: 248−630 | J57: 2, 5 | K57: 2, 4, 5
B58: p-xylene | C58: 106.167 | D58: 3.1723 | E58: 3.7781 | F58: 283.77 | G58: 2.09 | H58: 0.58 | I58: 286−616 | J58: 2, 5 | K58: 2, 4, 5
B59: n-propylbenzene | C59: 120.194 | D59: 3.3438 | E59: 3.8438 | F59: 288.13 | G59: 1.29 | H59: 1.19 | I59: 173−638 | J59: 5 | K59: 5
B60: tetralin | C60: 132.205 | D60: 3.3131 | E60: 3.875 | F60: 325.07 | G60: 1.06 | H60: 0.54 | I60: 237−720 | J60: 5 | K60: 5
B61: n-butylbenzene | C61: 134.221 | D61: 3.7662 | E61: 3.8727 | F61: 283.07 | G61: 0.6 | H61: 1.32 | I61: 185−660 | J61: 5 | K61: 5
B62: biphenyl | C62: 154.211 | D62: 3.8877 | E62: 3.8151 | F62: 327.42 | G62: 0.94 | H62: 1.14 | I62: 342−773 | J62: 5 | K62: 5
B63: gases
B64: carbon monoxide | C64: 28.01 | D64: 1.3097 | E64: 3.2507 | F64: 92.15 | G64: 2.21 | H64: 1.38 | I64: 80−133 | J64: 5 | K64: 5
B65: nitrogen | C65: 28.01 | D65: 1.2053 | E65: 3.313 | F65: 90.96 | G65: 0.34 | H65: 1.5 | I65: 63−126 | J65: 17 | K65: 17
B66: argon | C66: 39.948 | D66: 0.9285 | E66: 3.4784 | F66: 122.23 | G66: 0.32 | H66: 0.68 | I66: 84−151 | J66: 5 | K66: 5
B67: carbon dioxide | C67: 44.01 | D67: 2.0729 | E67: 2.7852 | F67: 169.21 | G67: 2.78 | H67: 2.73b | I67: 216−304 | J67: 8 | K67: 8, 8
B68: sulfur dioxide | C68: 64.065 | D68: 2.8611 | E68: 2.6826 | F68: 205.35 | G68: 1.82 | H68: 1.33 | I68: 198−431 | J68: 5 | K68: 5
B69: chlorine | C69: 70.905 | D69: 1.5514 | E69: 3.3672 | F69: 265.67 | G69: 0.99 | H69: 0.57 | I69: 172−417 | J69: 5 | K69: 5
B70: carbon disulfide | C70: 76.143 | D70: 1.6919 | E70: 3.6172 | F70: 334.82 | G70: 2.26 | H70: 0.77 | I70: 200−552 | J70: 5 | K70: 5
B71: halogenated hydrocarbons
B72: methyl chloride | C72: 50.488 | D72: 1.9297 | E72: 3.2293 | F72: 240.56 | G72: 0.48 | H72: 1.55 | I72: 175−416 | J72: 5 | K72: 5
B73: chloroethane | C73: 64.514 | D73: 2.2638 | E73: 3.416 | F73: 245.43 | G73: 1.63 | H73: 1.77 | I73: 134−460 | J73: 5 | K73: 5
B74: 2-chloropropane | C74: 78.541 | D74: 2.4151 | E74: 3.6184 | F74: 251.47 | G74: 2.89 | H74: 0.61 | I74: 156−489 | J74: 5 | K74: 5
B75: 1-chlorobutane | C75: 92.568 | D75: 2.8585 | E75: 3.6424 | F75: 258.66 | G75: 0.99 | H75: 1.14 | I75: 150−537 | J75: 5 | K75: 5
B76: chlorobenzene | C76: 112.558 | D76: 2.6485 | E76: 3.7533 | F76: 315.04 | G76: 2.59 | H76: 0.66 | I76: 228−632 | J76: 2, 5 | K76: 5
B77: bromobenzene | C77: 157.01 | D77: 2.6456 | E77: 3.836 | F77: 334.37 | G77: 1.27 | H77: 1.44 | I77: 242−670 | J77: 5 | K77: 5
B79: Table 2 (Continued)
G81: AAD% | J81: refa
B82: substance | C82: M [g/mol] | D82: m [−] | E82: σ [Å] | F82: ε/k [K] | G82: Psat | H82: v | I82: T range [K] | J82: Psat | K82: v
B83: ethers
B84: dimethyl ether | C84: 46.069 | D84: 2.3071 | E84: 3.2528 | F84: 211.06 | G84: 0.25 | H84: 0.8 | I84: 200−400 | J84: 5, 12 | K84: 5, 12
B85: diethyl ether | C85: 74.123 | D85: 2.9686 | E85: 3.5147 | F85: 220.09 | G85: 0.46 | H85: 0.94 | I85: 240−467 | J85: 5, 12 | K85: 5, 12
B86: methyl-n-propyl ether | C86: 74.123 | D86: 3.0087 | E86: 3.4569 | F86: 222.73 | G86: 1.99 | H86: 1.04 | I86: 220−476 | J86: 5 | K86: 5
B87: esters
B88: methyl methanoate | C88: 60.053 | D88: 2.6784 | E88: 3.0875 | F88: 242.63 | G88: 1.17 | H88: 1.48 | I88: 174−487 | J88: 5 | K88: 5
B89: ethyl methanoate | C89: 74.079 | D89: 2.8876 | E89: 3.3109 | F89: 246.47 | G89: 0.92 | H89: 1.8 | I89: 193−508 | J89: 5 | K89: 5
B90: n-propyl methanoate | C90: 88.106 | D90: 3.2088 | E90: 3.4168 | F90: 246.46 | G90: 0.95 | H90: 1.01 | I90: 270−538 | J90: 5 | K90: 5
B91: ethyl ethanoate | C91: 88.106 | D91: 3.5375 | E91: 3.3079 | F91: 230.8 | G91: 1.3 | H91: 2.24 | I91: 189−523 | J91: 5 | K91: 5
B92: n-propyl ethanoate | C92: 102.133 | D92: 3.7861 | E92: 3.4227 | F92: 235.76 | G92: 1.22 | H92: 1.07 | I92: 290−549 | J92: 5 | K92: 5
B93: n-butyl ethanoate | C93: 116.16 | D93: 3.9808 | E93: 3.5427 | F93: 242.52 | G93: 2.03 | H93: 1.26 | I93: 199−579 | J93: 5 | K93: 5
B94: isopropyl ethanoate | C94: 102.133 | D94: 3.6084 | E94: 3.4818 | F94: 231.91 | G94: 4.82 | H94: 1.09 | I94: 199−532 | J94: 5 | K94: 5
B95: methyl propanoate | C95: 88.106 | D95: 3.4793 | E95: 3.3142 | F95: 234.96 | G95: 1.26 | H95: 1.87 | I95: 185−530 | J95: 5 | K95: 5
B96: ethyl propanoate | C96: 102.133 | D96: 3.8371 | E96: 3.4031 | F96: 232.78 | G96: 2.18 | H96: 1.07 | I96: 199−546 | J96: 5 | K96: 5
B97: n-propyl propanoate | C97: 116.16 | D97: 4.1155 | E97: 3.4875 | F97: 235.6 | G97: 3.53 | H97: 0.73 | I97: 220−568 | J97: 5 | K97: 5
B98: methyl butanoate | C98: 102.133 | D98: 3.6758 | E98: 3.4437 | F98: 240.62 | G98: 1.36 | H98: 0.94 | I98: 187−554 | J98: 5 | K98: 5
